Cogmind - Beta 16.1 @@@ ROGUE MODE // 2026.02.06 @ 06:10:07 Player: H3-MLN Result: Destroyed Tau Ceti IV! Performance ------------- Evolutions (9) 4500 Regions Visited (39) 7800 Robots Destroyed (605) 3025 Value Destroyed (29463) 29463 Prototype IDs (400) 8000 Alien Tech Used (8) 1600 Bonus (65173) 65173 TOTAL SCORE: 119561 Bonus ------- High Alert Combat Kills 5414 Follower Combat Kills 15964 Hunted by Unchained 3500 Destroyed Unchained 6000 Entered Garrisons 400 Used RIF Installer 500 Network Hubs Disabled 800 Met R17 at Cetus 500 Scanned by Researcher 500 Destroyed MAIN.C Guards 500 Met MAIN.C 5000 Destroyed MAIN.C Shell 5000 Destroyed MAIN.C 10000 Met Architect 300 Started Test 138-B 500 Started Test 138-C 8000 Destroyed A2 1000 Win 3000 Friendly Fire -1705 Cogmind --------- Core Integrity 903/1600 Matter 291/300 Energy 48/1240 System Corruption 1% Temperature Cool (54) Movement Flying (8) Location Subspace Parts ------- > --- POWER (2) -------- Light Quantum Reactor Improved Quantum Reactor > --- PROPULSION (6) --- Cooled Q-thruster Cooled Q-thruster Experimental Biomechanical Wings Experimental Biomechanical Wings Concept Fieldthrust Drive Concept Fieldthrust Drive > --- UTILITY (15) ----- Concept Chromion Battery Concept Dimensional Manipulator Advanced Melee Analysis Suite Experimental Core Analyzer Experimental Core Analyzer Improved Armor Integrity Analyzer Experimental Reaction Control System Experimental Phase Shifter Improved Propulsion Shielding Improved Utility Shielding Improved Utility Shielding Improved Weapon Shielding Improved Medium Armor Plating Concept Impact Drone Bay (0/6) > --- WEAPON (2) ------- Plasma Lance > --- INVENTORY (5) ---- Field Propulsion Array Concept Cloak Mesh Improved Medium Armor Plating Enhanced Force Lance Peak State ------------ > --- POWER ------------ Hybrid Graviton Reactor Concept Zero-point Core > --- PROPULSION ------- Cooled Q-thruster Experimental Biomechanical Wings Experimental Biomechanical Wings Experimental Biomechanical Wings Concept Fieldthrust Drive Concept Fieldthrust Drive > --- UTILITY ---------- Concept Thermoelectric Network Concept Antigrav Storage Unit Concept Dimensional Manipulator Experimental Sensor Array Experimental Signal Interpreter Concept Melee Reflex Suite Concept Weapon Articulator Femtoactuators Experimental Reaction Control System Concept Cloak Mesh Medium Regenerative Plating Experimental EM Shield Concept Network Penetrator Concept Network Penetrator Advanced Corruption Screen > --- WEAPON ----------- Sigix Broadsword > --- INVENTORY -------- Cooled Q-thruster Concept Fieldthrust Drive Concept Chromion Battery Concept NT7 Matterbank Structural Scanner Experimental Weapon Cycler Femtoactuators Advanced Transmission Jammer Improved Propulsion Shielding Authchip [Weapon] Relay Coupler [NC] Concept Impact Drone Bay Transdimensional Reconstructor Subatomic Replicator Blink Core Concept Plasma Driver Concept Plasma Driver 8R-AWN's Boregun Concept Miniperforator Sigix Terminator CPS Tube IN-MT5's Pitchfork "Insurrection" Shield Trident Experimental Jetlance [Rating: 300] Favorites ----------- Power Hybrid Graviton Reactor Engine Cooled Ion Engine Power Core Concept Zero-point Core Reactor Hybrid Graviton Reactor Propulsion Experimental Biomechanical Wings Treads Light Treads Leg Experimental Biometal Leg Wheel Armored Wheel Hover Unit Experimental Antigrav System Flight Unit Experimental Biomechanical Wings Utility Concept Network Penetrator Device Experimental Sensor Array Storage Concept Antigrav Storage Unit Processor Experimental Signal Interpreter Hackware Concept Network Penetrator Protection Medium Regenerative Plating Weapon Sigix Broadsword Energy Gun Beamcaster Energy Cannon Advanced Beam Cannon Ballistic Gun Minigun Ballistic Cannon Heavy Hardcell Cannon Launcher Rocket Launcher Special Weapon Hammerchucker Impact Weapon Impact Mace Slashing Weapon Sigix Broadsword Piercing Weapon Force Lance Special Melee Weapon Improved Datajack Build | -11 -10 -10 -9 -9 -9 -8 -8 -8 -8 -7 -7 -7 -7 -7 -7 -5 -5 -5 -5 -5 -5 -4 -4 -4 -4 -4 -4 -4 -4 -3 -3 -3 -2 -2 -1 -1 -1 -1 -1 ------- Run | Yrd Mat Min Mat Min Exi Min Mat Gar Mat Fac Was Fac Sto Rec Scr Fac Was Fac Upp Upp War Pro Fac Was Fac Ext Cet Arc Hub Res Qua Frg Res Tes Acc Gar Acc Com Ac0 Slots Evolved 18 | . . . 2 . . . 2 . . 2 . . . . . 4 . . . . . . 2 . . . . . . 2 . . 2 . 2 . . . . Power 1 | . . . . . . . . . . . . . . . . 1 . . . . . . . . . . . . . . . . . . . . . . . Propulsion 4 | . . . 1 . . . 1 . . 1 . . . . . . . . . . . . 1 . . . . . . . . . . . . . . . . Utility 13 | . . . 1 . . . 1 . . 1 . . . . . 3 . . . . . . 1 . . . . . . 2 . . 2 . 2 . . . . Weapon . | . . . . . . . . . . . . . . . . . . . . . . . . . . . . . . . . . . . . . . . . Parts Attached 471 | 5 7 3 22 2 15 2 18 7 14 24 . 8 2 1 1 25 2 31 3 2 . 5 12 . 20 6 7 . 7 33 25 82 3 12 5 . . 57 3 Power 47 | . 1 . 3 . 2 . . . 1 2 . . . . . 3 . 8 . . . . 1 . 2 2 1 . 1 2 4 9 . . . . . 4 1 Engine 13 | . 1 . 3 . 1 . . . . . . . . . . 1 . 5 . . . . . . 1 . 1 . . . . . . . . . . . . Core 11 | . . . . . 1 . . . 1 2 . . . . . 1 . 2 . . . . . . . . . . 1 . 1 1 . . . . . 1 . Reactor 23 | . . . . . . . . . . . . . . . . 1 . 1 . . . . 1 . 1 2 . . . 2 3 8 . . . . . 3 1 Propulsion 107 | 3 1 1 8 . 2 1 6 . 6 9 . 1 . . . 2 . 5 . . . . 1 . 2 . 2 . 1 11 5 25 . . 1 . . 14 . Treads 36 | 2 . . 5 . . . 6 . 5 2 . . . . . . . . . . . . . . . . 1 . . 1 2 3 . . . . . 9 . Leg 5 | 1 . . . . . . . . . . . . . . . 1 . . . . . . . . . . . . . . . . . . . . . 3 . Wheel 8 | . 1 1 2 . 2 1 . . 1 . . . . . . . . . . . . . . . . . . . . . . . . . . . . . . Hover 15 | . . . . . . . . . . . . . . . . . . . . . . . . . 1 . . . . . 2 12 . . . . . . . Flight 43 | . . . 1 . . . . . . 7 . 1 . . . 1 . 5 . . . . 1 . 1 . 1 . 1 10 1 10 . . 1 . . 2 . Utility 219 | . 3 . 5 1 4 1 4 6 4 9 . 5 . . 1 16 2 11 . . . 4 9 . 14 4 1 . 4 14 11 40 2 9 4 . . 30 1 Device 89 | . . . 3 1 2 1 2 . 1 6 . 1 . . . 3 1 2 . . . 3 6 . 5 2 . . 2 4 2 21 1 4 3 . . 13 . Storage 19 | . 2 . . . . . . . . 1 . . . . . 2 . 4 . . . . . . 1 . . . . 2 1 6 . . . . . . . Processor 31 | . . . 1 . . . . . . 2 . 2 . . . 1 . 2 . . . 1 1 . 3 . . . . 2 3 3 1 2 1 . . 6 . Hackware 40 | . . . . . . . 1 3 3 . . 2 . . . 8 . 3 . . . . 1 . 5 1 . . 2 3 3 2 . 2 . . . 1 . Protection 40 | . 1 . 1 . 2 . 1 3 . . . . . . 1 2 1 . . . . . 1 . . 1 1 . . 3 2 8 . 1 . . . 10 1 Artifact . | . . . . . . . . . . . . . . . . . . . . . . . . . . . . . . . . . . . . . . . . Weapon 98 | 2 2 2 6 1 7 . 8 1 3 4 . 2 2 1 . 4 . 7 3 2 . 1 1 . 2 . 3 . 1 6 5 8 1 3 . . . 9 1 Energy Gun 11 | . . 1 . . 1 . 1 . . . . . 1 . . . . 1 . . . . . . . . 1 . . . . 4 . 1 . . . . . Energy Cannon 9 | . 1 . 1 1 . . . . . . . . . . . . . 1 . . . . . . . . . . . 1 . 1 1 . . . . 1 1 Ballistic Gun 28 | 2 1 . 4 . 4 . 3 . 2 1 . . . . . 1 . 1 1 1 . . . . . . 2 . . . 1 . . 1 . . . 3 . Ballistic Cannon 6 | . . . . . . . 1 . . 1 . . . . . . . . . . . . . . . . . . . 1 . 1 . 1 . . . 1 . Launcher 7 | . . 1 . . . . 2 . . . . . 1 . . . . 1 . . . . . . . . . . . 1 1 . . . . . . . . Special Weapon 12 | . . . . . . . . 1 . 1 . . . . . 1 . 2 . . . . . . . . . . . 3 2 . . . . . . 2 . Impact Weapon 4 | . . . 1 . . . . . 1 . . 1 . . . . . . 1 . . . . . . . . . . . . . . . . . . . . Slashing Weapon 10 | . . . . . 1 . 1 . . . . . . . . . . . 1 1 . . 1 . 1 . . . 1 . 1 1 . . . . . 1 . Piercing Weapon 5 | . . . . . . . . . . . . . . . . 2 . . . . . 1 . . . . . . . . . 1 . . . . . 1 . Special Melee Weapon 6 | . . . . . 1 . . . . 1 . 1 . 1 . . . 1 . . . . . . 1 . . . . . . . . . . . . . . Unidentified Prototypes 87 | . . . 4 1 1 . 3 . . 2 . 1 2 . . 7 . 9 . . . . 2 . 2 1 4 . 1 6 17 14 . 7 2 . . 1 . Corrupted Parts 6 | . . . . . . . . . . . . . . . . . . . . . . . . . . . . . . . . 1 . . . . . 5 . System Corruption 15 | . . . . . . . . . . . . . . . . . . . . . . . . . . . . . . . . 4 . . . . . 11 . Parts Lost 64 | . . 1 1 . 3 . 3 . 4 4 . . . . . . . 9 . 1 1 . 1 . 6 . 1 . 1 2 1 9 . . 2 . . 12 2 Power 14 | . . . . . . . . . 2 . . . . . . . . 3 . . . . . . 2 . 1 . . . 1 3 . . . . . . 2 Propulsion 19 | . . 1 . . 2 . 2 . 2 3 . . . . . . . 3 . . . . 1 . 2 . . . . 1 . 1 . . 1 . . . . Utility 21 | . . . 1 . 1 . . . . . . . . . . . . 3 . 1 1 . . . 1 . . . 1 1 . 5 . . 1 . . 5 . Weapon 10 | . . . . . . . 1 . . 1 . . . . . . . . . . . . . . 1 . . . . . . . . . . . . 7 . Highest Loss Streak 7 | . . 1 1 . 2 . 1 . 2 3 . . . . . . . 1 . 1 1 . 1 . 3 . 1 . 1 1 1 2 . . 1 . . 7 2 To Critical Strikes 2 | . . . . . 2 . . . . . . . . . . . . . . . . . . . . . . . . . . . . . . . . . . Average Backups 19 | 2 9 16 19 19 13 15 14 14 15 7 6 5 5 6 7 9 9 10 10 10 10 9 9 10 13 13 14 15 14 14 14 18 23 23 23 24 23 17 21 Power . | . . . 1 1 1 1 1 1 1 . . . . . . . . . . . . . . . . . . . . . . . . . . . . 1 1 Propulsion 1 | . 3 6 5 6 3 3 2 2 2 1 1 . . . . . . . 1 1 1 1 . 1 1 1 1 1 1 . . . 2 1 1 1 1 1 3 Utility 8 | 1 1 2 4 5 3 8 6 7 8 4 3 3 3 4 4 3 2 3 4 4 4 3 3 3 5 6 8 9 8 6 8 9 10 11 11 11 10 8 12 Weapon 6 | 1 4 7 6 6 5 3 3 3 2 1 2 2 2 2 1 4 6 5 4 4 4 4 3 5 5 5 4 4 4 6 4 5 7 7 8 9 8 4 4 Tool/Special . | . . . . . . . . . . . . . . . . . . . . . . . . . . . . . . . . . . . . . . . . Unused Backups 91 | 1 1 1 17 1 7 . 2 1 1 . . . . . . 5 1 2 . . . . 1 . 2 2 1 1 1 5 . 18 2 . . . . 11 7 Power 9 | . . . . 1 4 . 1 . . . . . . . . . . . . . . . . . . . . . . . . 1 . . . . . 2 . Propulsion 28 | . . 1 8 . 1 . . . . . . . . . . 3 1 . . . . . . . 1 . . . . 1 . 7 . . . . . 3 2 Utility 32 | 1 . . 1 . 2 . 1 1 1 . . . . . . 2 . 1 . . . . 1 . 1 1 1 1 1 2 . 8 . . . . . 3 3 Weapon 22 | . 1 . 8 . . . . . . . . . . . . . . 1 . . . . . . . 1 . . . 2 . 2 2 . . . . 3 2 Tool/Special . | . . . . . . . . . . . . . . . . . . . . . . . . . . . . . . . . . . . . . . . . Average Slot Usage (%) 91 | . 84 99 98 99 68 100 98 99 96 88 100 99 99 100 97 98 99 93 93 92 86 90 86 84 84 88 88 89 88 90 92 88 94 94 95 96 95 56 94 Engine 1 | . 7 14 11 11 4 . . . . . . . . . . . 3 5 . . . . . . . 5 4 5 4 . . . . . . . . . . Core 3 | . . . . . 1 11 9 9 7 5 7 6 7 7 7 8 6 4 5 5 5 5 2 . . . . . . 1 . . 4 4 4 4 4 1 3 Reactor 3 | . . . . . . . . . . . . . . . . . . . 5 5 5 5 5 10 8 5 5 5 5 6 8 8 4 4 4 4 4 3 3 Treads 2 | . 17 14 22 22 11 16 17 18 18 4 . . . . . . . . . . . . . . . . . . . . . . . . . . . 6 . Wheel 1 | . 10 13 11 11 8 16 18 18 17 2 . . . . . . . . . . . . . . . . . . . . . . . . . . . . . Flight 19 | . . . . . . . . . . 27 38 38 37 38 38 28 29 25 23 23 23 23 22 21 20 21 20 21 21 20 22 7 26 26 23 24 24 7 24 Device 21 | . . . 11 11 10 11 14 11 10 9 7 6 13 15 15 18 22 21 17 15 9 15 14 15 11 12 13 15 10 15 6 20 29 22 28 28 31 14 18 Storage 5 | . 10 14 11 11 11 11 9 9 9 7 7 7 7 7 7 5 5 5 5 5 5 5 5 5 5 5 5 5 5 4 4 6 4 4 4 4 4 4 5 Processor 13 | . . . . . . . . . . 9 15 15 15 15 15 11 11 11 17 17 17 17 22 21 20 18 15 15 15 17 24 12 12 16 15 16 12 6 19 Hackware 6 | . . . . . . . 3 2 14 7 7 7 1 . . 8 5 5 5 5 5 5 1 5 7 10 10 10 14 13 13 . 8 8 8 8 8 3 . Protection 4 | . 10 14 8 10 6 10 9 12 1 . . . . . . . . . . . . . 2 . . . 1 . . . . 9 . 3 4 4 4 5 16 Ballistic Gun 1 | . 20 14 10 11 6 11 13 6 6 3 . . . . . . . . 1 5 5 2 1 . . 1 1 5 4 . 2 . . . . . . . . Slashing Weapon 3 | . . . . . . 11 1 2 3 . . . . . . . . . 2 5 5 4 4 5 3 5 5 5 5 3 4 3 3 3 3 4 3 . . Peak Build Rating 300 | 5 9 14 26 36 51 51 56 57 52 71 65 69 75 72 76 108 99 111 121 119 111 123 143 142 142 138 135 128 134 168 197 268 282 285 298 293 297 300 239 Average Rating 211 | 4 7 11 23 27 30 46 51 50 45 56 64 65 69 71 70 94 96 95 114 115 108 112 120 142 129 132 127 127 132 150 171 208 278 281 293 293 290 172 229 On Entrance 117 | 1 5 9 14 26 28 46 47 51 51 39 64 65 67 70 72 67 99 96 111 118 111 102 113 140 142 132 131 128 128 130 157 194 268 282 281 293 293 289 235 Avg Prop Armor Cover (%) 12 | 27 16 9 14 13 12 11 13 12 19 26 . 6 . . . 1 . . . . . . 1 . 2 . . . . . 2 1 . . . . . 38 . Naked Turns . | . . . . . . . . . . . . . . . . . . . . . . . . . . . . . . . . . . . . . . . . Heaviest Build 159 | 3 51 53 65 65 88 82 90 93 90 57 25 25 24 24 28 37 44 49 38 34 33 38 41 37 53 54 56 48 49 61 60 113 76 82 79 78 83 159 79 Greatest Support 240 | 3 10 16 20 12 46 24 36 40 24 62 30 26 26 26 38 39 39 52 35 41 35 35 48 42 55 55 55 52 56 66 64 130 80 79 81 81 84 240 86 Greatest Overweight (x) 24 | . 5 5 5 5 15 6 3 3 4 2 . . 1 . 1 1 1 1 1 . . 1 1 . 1 1 1 . . 1 1 4 . 2 . . 1 24 . Average Overweight (x) . | . 1 3 4 4 5 4 2 2 2 . . . . . . . . . . . . . . . . . . . . . . . . . . . . . . Largest Inventory Capacity 25 | 5 20 20 20 20 20 20 20 20 20 20 10 10 10 10 10 10 10 15 10 10 10 10 10 10 15 15 15 15 15 15 15 25 25 25 25 25 25 25 25 Average Capacity 21 | 5 12 20 20 20 20 20 20 20 20 12 10 10 10 10 10 10 10 10 10 10 10 10 10 10 14 15 15 15 15 15 15 19 25 25 25 25 25 25 23 Most Carried 25 | 4 16 20 20 20 20 20 20 20 20 20 10 10 10 10 10 10 10 15 10 10 10 10 10 10 15 15 15 15 15 15 15 25 25 25 25 25 25 25 25 Average Carried 20 | 2 9 16 19 19 15 20 19 19 19 11 10 9 9 10 9 9 9 10 10 10 10 9 9 10 13 14 14 14 14 14 14 18 24 24 24 25 24 19 22 Final Capacity 25 | 5 20 20 20 20 20 20 20 20 20 10 10 10 10 10 10 10 10 10 10 10 10 10 10 10 15 15 15 15 15 15 15 25 25 25 25 25 25 25 5 Final Carried 25 | 3 16 20 20 20 20 20 20 20 20 10 10 10 10 10 10 10 10 10 10 10 10 10 10 10 14 15 15 15 15 15 15 25 25 25 25 25 24 25 5 Class Distribution -------------------- 53% | Wizard-Sprinter 14% | Mutant 6% | Hacker-Scout 5% | Scavenger-Ninja 3% | Hacker-Ninja Dominant Class ---------------- Mutant | -10/Materials Mutant | -10/Mines Mutant | -9/Materials Mutant | -9/Mines Mutant | -9/Exiles Mutant | -8/Mines Mutant | -8/Materials Mutant | -8/Garrison Mutant | -8/Materials Sprinter | -7/Factory Scout | -7/Waste Scout | -7/Factory Ninja | -7/Storage Ninja | -7/Recycling Scout | -7/Scraptown Hacker-Ninja | -5/Factory Scavenger-Ninja | -5/Waste Scavenger-Ninja | -5/Factory Scavenger-Ninja | -5/Upper Caves Scavenger-Ninja | -5/Upper Caves Scavenger-Scout | -5/Warlord Scavenger-Scout | -4/Proximity Caves Scavenger-Scout | -4/Factory Scavenger-Scout | -4/Waste Scavenger-Scout | -4/Factory Hacker-Scout | -4/Extension Hacker-Mutant | -4/Cetus Hacker-Scout | -4/Archives Hacker-Scout | -4/Hub_04(d) Hacker-Ninja | -3/Research Hacker-Scout | -3/Quarantine Scavenger-Gladiator | -3/Protoforge Wizard-Sprinter | -2/Research Wizard-Sprinter | -2/Testing Wizard-Sprinter | -1/Access Wizard-Sprinter | -1/Garrison Wizard-Ninja | -1/Access Mutant | -1/Command Mutant | -1/Access_0 Resources | -11 -10 -10 -9 -9 -9 -8 -8 -8 -8 -7 -7 -7 -7 -7 -7 -5 -5 -5 -5 -5 -5 -4 -4 -4 -4 -4 -4 -4 -4 -3 -3 -3 -2 -2 -1 -1 -1 -1 -1 ----------- Run | Yrd Mat Min Mat Min Exi Min Mat Gar Mat Fac Was Fac Sto Rec Scr Fac Was Fac Upp Upp War Pro Fac Was Fac Ext Cet Arc Hub Res Qua Frg Res Tes Acc Gar Acc Com Ac0 Matter Collected 20758 | 292 231 90 581 182 626 30 1271 770 498 594 . 245 80 37 63 811 30 1561 370 36 . 979 331 . 672 301 171 . 289 828 1322 3903 390 372 315 . 50 2311 126 Remotely . | . . . . . . . . . . . . . . . . . . . . . . . . . . . . . . . . . . . . . . . . Salvage Created 28045 | 102 272 114 1498 397 282 39 1885 386 509 692 . 266 133 . . 1371 . 1943 171 . . 354 309 . 854 463 16 396 216 1331 1639 4025 1900 3021 970 . 82 2319 90 Parts 1376 | 8 14 14 80 29 46 5 87 34 35 37 . 1 3 . . 38 . 115 3 . . 7 13 . 36 20 . 28 15 70 88 210 104 86 52 . 13 75 10 Haulers Intercepted 26 | . 1 . 6 . . . 6 . 1 2 . 1 . . . . . 1 . . . . 1 . 2 1 . . . 4 . . . . . . . . . Recyclers Shooed 8 | 1 . . . . . 1 2 . . 1 . . . . . 1 . . . . . . 1 . . . . . . . . . . 1 . . . . . Parts Field Recycled 2 | . . . . . . . . . . . . . . . . . . . . . . . . . . . . . . . . . . 2 . . . . . Retrieved Matter 35 | . . . . . . . . . . . . . . . . . . . . . . . . . . . . . . . . . . 35 . . . . . Parts Self-Destructed 14 | . . . . . . . . . . . . . . . . . . . 5 4 . 5 . . . . . . . . . . . . . . . . . Prevented . | . . . . . . . . . . . . . . . . . . . . . . . . . . . . . . . . . . . . . . . . Parts Restored 7 | . . . . . . . . . . . . . . . . 1 . . . . . . . . . . . . . . . 6 . . . . . . . Broken 1 | . . . . . . . . . . . . . . . . 1 . . . . . . . . . . . . . . . . . . . . . . . Faulty 6 | . . . . . . . . . . . . . . . . . . . . . . . . . . . . . . . . 6 . . . . . . . Kills | -11 -10 -10 -9 -9 -9 -8 -8 -8 -8 -7 -7 -7 -7 -7 -7 -5 -5 -5 -5 -5 -5 -4 -4 -4 -4 -4 -4 -4 -4 -3 -3 -3 -2 -2 -1 -1 -1 -1 -1 ------- Run | Yrd Mat Min Mat Min Exi Min Mat Gar Mat Fac Was Fac Sto Rec Scr Fac Was Fac Upp Upp War Pro Fac Was Fac Ext Cet Arc Hub Res Qua Frg Res Tes Acc Gar Acc Com Ac0 Combat Hostiles Destroyed 352 | . 3 11 21 8 5 . 30 10 7 6 . 1 2 . . 1 . 9 3 . . 3 1 . . 2 . . 2 7 11 56 26 15 12 . 1 98 1 Melee 128 | . . . . . . . 2 1 1 . . . 1 . . 1 . 4 1 . . 2 1 . . 2 . . 2 6 6 41 26 14 12 . 1 4 . Guns 70 | . 3 6 8 3 1 . 17 5 6 4 . . . . . . . 5 2 . . 1 . . . . . . . . 5 2 . 1 . . . 1 . Cannons 42 | . . 2 13 3 . . 7 3 . 1 . . . . . . . . . . . . . . . . . . . 1 . 4 . . . . . 8 . AOE 98 | . . 3 . 2 4 . 4 1 . . . . . . . . . . . . . . . . . . . . . . . . . . . . . 84 . Classes Destroyed 34 | 2 3 1 5 2 2 . 2 2 . . . . . . . . . . 1 . . 2 . . . . . . . . 2 5 . . 1 . . 4 . Worker 29 | . 1 . 1 2 . 2 . . 1 2 . . . . . 2 . 3 . . . . . . 1 . . . 2 1 2 . . 7 . . . 2 . Builder 30 | . . . 1 1 . . . . 1 1 . . . . . 2 . 8 . . . . 1 . 3 . . . . . 6 . 2 1 2 . 1 . . Tunneler 11 | 3 . . 1 3 . . . . . . . . . . . 2 . 2 . . . . . . . . . . . . . . . . . . . . . Hauler 26 | . 1 . 6 . . . 6 . 1 2 . 1 . . . . . 1 . . . . 1 . 2 1 . . . 4 . . . . . . . . . Recycler 47 | 1 2 . 3 . . . 3 . 1 3 . 2 . . . 8 . 4 . . . . 1 . 4 1 . . . 2 2 . . 10 . . . . . Carrier 12 | . . . . . . . . . . . . . . . . . . . . . . . . . . . . . . . . . . . . . . 12 . Minesweeper 1 | . . . . . . . . . . . . . . . . . . . . . . 1 . . . . . . . . . . . . . . . . . Operator 29 | . . . 2 . . . 1 . . 1 . . 1 . . 1 . 4 . . . . . . 1 2 . 9 2 . 1 . 1 2 . . . 1 . Drone 6 | . . . . . . . . . . . . . . . . . . . . . . 1 . . . . . . . . . 3 . . 2 . . . . Turret 11 | . . . . . 1 . . . . . . . . . . . . 10 . . . . . . . . . . . . . . . . . . . . . Watcher 47 | . . . 4 . . . 2 . 1 1 . 2 1 . . 4 . 6 . . . . . . 2 1 . . 2 6 2 . 7 2 4 . . . . Swarmer 34 | . 3 9 4 . . . 4 . 1 . . . . . . . . . . . . . . . . . . . 2 1 . . 8 . . . . 2 . Cutter 2 | . . . . . . . . 2 . . . . . . . . . . . . . . . . . . . . . . . . . . . . . . . Saboteur 7 | . . . . . . . . . . . . . . . . . . . . . . . . . . . . . . . . 1 . . . . . 6 . Grunt 102 | . . . 11 6 . . 15 . 2 4 . . 2 . . . . 3 . . . 1 1 . . 2 . . . . 1 5 . . 1 . . 48 . Brawler 4 | . . . . . . . 1 . . . . . . . . . . 1 . . . . . . . . . . . . . 2 . . . . . . . Duelist 4 | . . . . 1 . . 1 . 1 . . . . . . . . . . . . . . . . . . . . . . 1 . . . . . . . Protector 1 | . . . . . . . . . . . . . . . . . . . . . . . . . . . . . . . . 1 . . . . . . . Researcher 10 | . . . . . . . . . . . . . . . . . . . . . . . . . . . . . . . 2 1 . 7 . . . . . Sentry 38 | . . . 6 . . . 8 3 3 1 . . . . . . . . 1 . . . . . . . . . . 2 . 9 3 . 1 . . 1 . Demolisher 4 | . . 2 . . . . . 1 . . . . . . . . . . . . . 1 . . . . . . . . . . . . . . . . . Specialist 6 | . . . . . . . . . . . . . . . . . . . . . . . . . . . . . . . . . . . . . . 6 . Hunter 13 | . . . . . . . 1 1 . . . . . . . . . . . . . . . . . . . . . . 3 4 2 1 . . . 1 . Programmer 97 | . . . . . . . . 3 . 1 . 1 . . . 1 . 5 . . . . . . . . . . . 4 6 18 13 14 7 . 1 23 . Q-Series 1 | . . . . . . . . . . . . . . . . . . . . . . . . . . . . . . . . . . . 1 . . . . Behemoth 1 | . . . . . . . . . . . . . . . . . . . . . . . . . . . . . . . . . . . . . . 1 . M Guard 2 | . . . . . . . . . . . . . . . . . . . . . . . . . . . . . . . . . . . . . . 2 . Decapitator 8 | . . . . . . . . . . . . . . . . . . . . . . . . . . . . . . . . 8 . . . . . . . Immortal 1 | . . . . . . . . . . . . . . . . . . . . . . . . . . . . . . . . 1 . . . . . . . Combat Programmer 2 | . . . . . . . . . . . . . . . . . . . . . . . . . . . . . . . . . . . . . . 2 . Alpha 7 2 | . . . . . . . . . . . . . . . . . . . . . . . . . . . . . . . . 2 . . . . . . . Fortress 1 | . . . . . . . . . . . . . . . . . . . . . . . . . . . . . . . 1 . . . . . . . . V-Series 1 | . . . . . . . . . . . . . . . . . . . . . . . . . . . . . . . . 1 . . . . . . . Zionite 7 | . . . . . 7 . . . . . . . . . . . . . . . . . . . . . . . . . . . . . . . . . . Samaritan 1 | . . . . . . . . . . . . . . . . . . . 1 . . . . . . . . . . . . . . . . . . . . Tinkerer 1 | . . . . . . . . . . . . . . . . . . . . . . . . . . . . . . . . 1 . . . . . . . Assembled 9 | . . . . 1 6 . . . . . . . . . . . . . 2 . . . . . . . . . . . . . . . . . . . . Guerrilla 2 | . . . . . . . . . . . . . . . . . . . . . . . . . . . . 1 . . . . . . . . . 1 . Wizard 1 | . . . . . . . . . . . . . . . . . . . . . . . . . . . . . . . . . . . . . . 1 . Mutant 2 | . . . . . . . . . . . . . . . . . . . . . . . . . . . . . . . . . . . . . . 2 . Best Kill Streak 96 | 2 4 3 4 3 7 1 5 3 2 7 . 2 3 . . 6 . 7 2 . . 2 1 . 2 2 . 9 2 3 2 6 5 10 3 . 1 96 1 Combat Bots Only 84 | . 3 3 4 3 5 . 4 3 2 1 . 1 2 . . 1 . 3 2 . . 1 1 . . 1 . . 2 2 2 6 5 3 2 . 1 84 1 Max Kills in Single Turn 96 | 1 1 2 1 1 2 1 2 1 1 3 . 1 1 . . 1 . 2 1 . . 1 1 . 1 1 1 1 1 1 1 3 2 1 1 . 1 96 1 Gunslinging . | . . . . . . . . . . . . . . . . . . . . . . . . . . . . . . . . . . . . . . . . Exploded 84 | . . 2 . 1 2 . 2 1 . . . . . . . . . . . . . . . . . . . . . . . . . . . . . 84 . Melee 2 | . . . . . . . 1 1 1 . . . 1 . . 1 . 1 1 . . 1 1 . . 1 . . 1 1 1 1 2 1 1 . 1 1 . Uniques/NPCs Destroyed 14 | . . . . . 4 . . . . . . . . . . . . 1 . . . . . . . . 1 . . . 4 . . 1 . . . 2 1 EX-BIN (-9/Exiles) 8R-AWN (-9/Exiles) EX-HEX (-9/Exiles) EX-DEC (-9/Exiles) GL-D0S (-5/Factory) Revision 17 (-4/Cetus) BL-1NK (-3/Quarantine) CL-0N3 (-3/Quarantine) 6S-H0T (-3/Quarantine) DW-4LL (-3/Quarantine) 1B-0RG (-2/Testing) MAIN.C Shell (-1/Command) MAIN.C (-1/Command) A2 (-1/Access_0) Combat | -11 -10 -10 -9 -9 -9 -8 -8 -8 -8 -7 -7 -7 -7 -7 -7 -5 -5 -5 -5 -5 -5 -4 -4 -4 -4 -4 -4 -4 -4 -3 -3 -3 -2 -2 -1 -1 -1 -1 -1 -------- Run | Yrd Mat Min Mat Min Exi Min Mat Gar Mat Fac Was Fac Sto Rec Scr Fac Was Fac Upp Upp War Pro Fac Was Fac Ext Cet Arc Hub Res Qua Frg Res Tes Acc Gar Acc Com Ac0 Hostile Shots Fired 1431 | . 11 27 67 23 71 . 129 41 65 44 . 5 19 . . 6 . 37 . 13 . 3 60 . 50 17 . . 12 25 24 354 48 32 29 . 7 117 95 Missed 547 | . 6 8 22 4 16 . 32 9 16 15 . 4 8 . . 5 . 15 . 7 . 2 35 . 29 6 . . 4 6 12 124 20 13 9 . 3 34 83 Intercepted 2 | . . . . . . . . . . . . . . . . . . . . . . . . . . . . . . . . 2 . . . . . . . Hits 884 | . 5 19 45 19 55 . 97 32 49 29 . 1 11 . . 1 . 22 . 6 . 1 25 . 21 11 . . 8 19 12 230 28 19 20 . 4 83 12 Melee 24 | . . . . . . . 3 1 2 . . . . . . . . . . . . . . . 1 . . . . . . 17 . . . . . . . Projectile 860 | . 5 19 45 19 55 . 94 31 47 29 . 1 11 . . 1 . 22 . 6 . 1 25 . 20 11 . . 8 19 12 213 28 19 20 . 4 83 12 AOE 28 | . . 7 . . . . . 3 . . . . . . . . . 3 . . . . 4 . . . . . . . 1 1 . . 1 . . 8 . Critical Strikes 93 | . . 1 1 . 21 . 7 1 7 . . . . . . . . 4 . . . . 4 . . 2 . . 4 4 . 28 . 3 1 . . 4 1 Actively Blocked 6 | . . . . . . . . . . . . . . . . . . . . . . . . . . . . . . . . 5 . . . . . . 1 Part Disruptions 39 | . . . . . 1 . . 1 . . . . . . . . . . . 1 1 . 19 . . . . . . . . 3 . 1 . . . 9 3 Actively Blocked 3 | . . . . . . . . . . . . . . . . . . . . . . . . . . . . . . . . . . . . . . . 3 Damage Taken 19722 | . 36 378 577 250 938 . 1488 560 882 297 . 17 96 . . 54 . 938 . 207 92 23 437 . 395 326 52 . 341 633 687 4351 438 394 797 . 97 3356 585 Core 2721 | . . 86 36 33 87 . 226 94 133 31 . . 44 . . 25 . 308 . 65 12 . 18 . 120 99 . . 73 70 409 160 . . 38 . . 357 197 Absorbed by Shields 248 | . . . . . . . 52 16 . . . . . . . . . . . . . . . . 22 64 . . . . . 94 . . . . . . . Redirected to Shielding 527 | . . . . . . . . . . . . . . . . . . . . . . . . . . . . . . . . 411 . . . . . 12 104 Ignored by Resistances 2766 | . . . . . . . . . . . . . . . . . . . . . . . . . . . . . . . . 1846 258 29 15 . . 318 300 Regen/Repaired (Parts) 4895 | . . . . . . . . . 54 20 . 52 18 . . . 127 . . . . . . . . . 45 . . 134 90 2223 519 344 627 . 73 569 . Core Remaining (%) 66 | 100 . 65 . . . 61 . . 17 . . . . . 89 . . . . . . 59 . . . . . . 73 . . 42 . 100 . . . . 56 Volleys Fired 1082 | 19 27 19 89 40 78 . 132 71 47 43 . . 3 . 6 8 . 92 17 1 18 58 7 . 13 18 3 . 4 11 71 64 3 4 6 . 4 101 5 Largest 2 | 2 2 2 2 2 2 . 2 2 2 1 . . 1 . 1 1 . 1 1 1 1 2 1 . 2 1 1 . 1 1 1 2 1 1 1 . 1 2 1 Hottest 210 | 40 80 95 98 93 75 . 62 67 48 37 . . 70 . 30 30 . 65 30 30 30 60 30 . 60 30 30 . 35 113 70 210 140 30 140 . 140 185 94 Shots Fired 1431 | 38 54 36 177 63 80 . 242 86 53 43 . . 3 . 6 8 . 92 17 1 18 60 7 . 18 18 3 . 4 11 71 85 3 4 6 . 4 115 5 Gun 1027 | 38 49 24 97 23 76 . 213 32 41 39 . . 3 . 6 8 . 88 17 1 18 60 6 . 15 14 1 . 4 . 63 55 . 4 . . . 32 . Cannon 335 | . 5 10 80 37 . . 27 36 . 4 . . . . . . . . . . . . . . . . . . . 9 . 30 3 . 6 . 4 79 5 Launcher 14 | . . 2 . 3 4 . 2 2 . . . . . . . . . . . . . . . . . . . . . . . . . . . . . 1 . Special 55 | . . . . . . . . 16 12 . . . . . . . . 4 . . . . 1 . 3 4 2 . . 2 8 . . . . . . 3 . Kinetic 1124 | 38 49 17 88 23 64 . 240 68 41 43 . . . . 6 8 . 87 17 1 18 60 6 . 15 14 1 . 4 6 63 46 . 4 5 . . 92 . Thermal 208 | . 5 17 89 37 12 . . . . . . . 3 . . . . 1 . . . . . . . . . . . 3 . 13 3 . 1 . 4 20 . Explosive 13 | . . 2 . 3 4 . 2 2 . . . . . . . . . . . . . . . . . . . . . . . . . . . . . . . Electromagnetic 31 | . . . . . . . . . . . . . . . . . . . . . . . . . . . . . . . . 26 . . . . . . 5 Impact 13 | . . . . . . . . . . . . . . . . . . 3 . . . . 1 . 3 4 2 . . . . . . . . . . . . Piercing 3 | . . . . . . . . . . . . . . . . . . . . . . . . . . . . . . 1 . . . . . . . 2 . Robot Hit Streak 37 | 5 6 4 16 6 8 . 14 8 7 6 . . . . . . . 10 5 . 3 2 3 . 2 3 1 . . 5 15 15 . 8 24 . . 37 4 Robot Miss Streak 6 | 3 4 5 4 3 4 . 4 2 4 5 . . . . . . . 5 2 . 2 3 1 . 2 3 3 . . 6 4 1 . . 1 . . 2 3 Penetration Max 2 | . . . . . 2 . . 2 . 1 . . . . . . . 2 . . . 1 2 . . . . . . . 1 1 . . . . . 1 . Secondary Targets 2 | . . . 1 . . . 1 . . . . . . . . . . . . . . . . . . . . . . . . . . . . . . . . Max Gunslinging Chain 1 | . . . 1 . . . 1 . . . . . . . . . . . . . . . . . . . . . . . . . . . . . . . . Shots Hit Robots 1449 | 21 31 17 118 29 84 3 183 34 44 24 . 10 4 2 1 24 . 86 7 . 11 17 15 . 20 21 1 15 12 47 72 186 76 73 52 . 6 101 2 Core Hits 648 | 7 10 12 48 17 28 2 69 17 14 12 . . . . . 7 . 49 3 . . 7 8 . 10 5 . 7 11 20 31 63 26 33 21 . 1 110 . Critical Kills 42 | . . . . 1 1 . . 2 . 6 . . . . . 1 . 10 2 . . 1 . . 1 . . . . . 5 8 . 1 . . . 3 . Critical Parts Destroyed 70 | . . . 2 1 4 . . 1 1 3 . 4 . . . 2 . 16 2 . . 3 4 . 1 1 . . . . 10 3 . 1 7 . . 4 . Critical Strikes 182 | . . 1 3 2 8 . . 3 1 9 . 4 . . . 5 . 34 4 . . 5 5 . 2 3 . . 1 4 19 27 6 5 14 . 1 16 . Burn 3 | . . 1 1 . 1 . . . . . . . . . . . . . . . . . . . . . . . . . . . . . . . . . . Meltdown 7 | . . . . 1 . . . . . . . . . . . . . . . . . . . . . . . . . . . 5 . . . . . 1 . Destroy 104 | . . . 2 1 5 . . 3 1 8 . . . . . . . 28 4 . . 4 4 . 1 1 . . . . 15 8 . 2 10 . . 7 . Blast 4 | . . . . . . . . . . . . . . . . . . . . . . . . . . . . . . 1 2 . . . . . . 1 . Corrupt 1 | . . . . . . . . . . . . . . . . . . . . . . . . . . . . . . . . 1 . . . . . . . Smash 9 | . . . . . . . . . . 1 . 4 . . . 3 . . . . . . . . 1 . . . . . . . . . . . . . . Sever 36 | . . . . . 2 . . . . . . . . . . . . . . . . 1 1 . . 2 . . 1 2 2 13 6 1 2 . 1 2 . Impale 18 | . . . . . . . . . . . . . . . . 2 . 6 . . . . . . . . . . . 1 . . . 2 2 . . 5 . Melee Attacks 1209 | . . . 2 . 43 3 4 17 17 33 . 34 24 6 6 50 1 82 6 3 1 23 27 . 41 27 1 18 31 91 107 191 123 77 60 . 11 48 1 Thermal 1 | . . . . . . . . . . . . . . . . . . . . . . . . . . . . . . . 1 . . . . . . . . Impact 136 | . . . 2 . . . . . 9 31 . 34 24 3 5 27 . . 1 . . . . . . . . . . . . . . . . . . . . Slashing 939 | . . . . . 39 3 4 17 8 1 . . . . . . . . 4 3 1 22 24 . 41 27 1 18 31 91 106 189 123 75 57 . 11 43 . Piercing 118 | . . . . . . . . . . . . . . . . 19 1 80 1 . . 1 3 . . . . . . . . 2 . 2 3 . . 5 1 Sneak Attacks 227 | . . . . . 4 3 1 1 5 6 . 4 4 2 1 19 . 23 1 . . 1 4 . 9 6 . 10 6 13 26 10 14 37 9 . 2 6 . Combat Hostiles 65 | . . . . . . . . 1 . 1 . 1 2 . . 1 . 3 . . . . 1 . . . . . 2 4 14 2 10 11 7 . 1 4 . Follow-up Attacks 1 | . . . . . . . . . . . . . . . . 1 . . . . . . . . . . . . . . . . . . . . . . . Martial Strikes 95 | . . . . . . . . . . . . . . . . . . . . . . . . . . . . . . . . 22 41 14 14 . 2 2 . Damage Inflicted 168900 | 215 378 464 2248 805 2519 199 3652 848 1092 1514 . 774 382 . . 2207 . 3909 201 . . 720 774 . 1665 1239 99 1896 1305 3465 5482 15485 8287 9372 5096 . 712 91880 16 Guns 11347 | 215 307 238 1026 293 954 . 2600 325 417 322 . . . . . . . 1132 74 . . 150 189 . 42 95 . . . . 710 1017 . 42 . . . 1199 . Cannons 6247 | . 71 108 1222 237 . . 572 276 . 73 . . . . . . . . . . . . . . . . . . . 157 . 1692 . . 85 . . 1738 16 Explosions 87083 | . . 118 . 262 511 . 324 177 125 513 . . . . . 113 . . . . . . . . . . . . 233 . . . . . . . . 84707 . Melee 63793 | . . . . . 1054 199 156 70 550 606 . 774 382 . . 2094 . 2621 127 . . 570 585 . 1575 1083 . 1896 1072 3288 4772 12776 8287 9330 5011 . 712 4203 . Ramming 13 | . . . . 13 . . . . . . . . . . . . . . . . . . . . . . . . . . . . . . . . . . . Kinetic 12622 | 215 307 144 849 293 808 . 3172 601 417 395 . . . . . . . 1132 74 . . 150 189 . 42 95 . . . 157 710 927 . 42 85 . . 1818 . Thermal 89520 | . 71 202 1399 237 146 . . . . 513 . . . . . 113 . . . . . . . . . . . . . . . 1013 . . . . . 85826 . Explosive 1517 | . . 118 . 262 511 . 324 177 125 . . . . . . . . . . . . . . . . . . . . . . . . . . . . . . Electromagnetic 1018 | . . . . . . . . . . . . . . . . . . . . . . . . . . . . . 233 . . 769 . . . . . . 16 Impact 3598 | . . . . . . . . . 205 576 . 774 382 . . 1297 . 156 . . . . . . 48 61 99 . . . . . . . . . . . . Slashing 56450 | . . . . . 1054 199 156 70 345 30 . . . . . . . . 127 . . 570 585 . 1575 1083 . 1896 1072 3288 4772 12776 8287 9096 4763 . 712 3994 . Piercing 4162 | . . . . . . . . . . . . . . . . 797 . 2621 . . . . . . . . . . . 20 . . . 234 248 . . 242 . Highest Corruption 8 | . . . . . . . 4 8 8 1 1 1 1 1 . . . 1 . 1 1 1 . 8 8 4 . . 5 . . 7 . . . . . 5 1 Average Corruption 3 | . . . . . . . 3 7 7 1 1 1 1 1 . . . 1 . 1 1 1 . 8 3 1 . . 2 . . 5 . . . . . 1 1 Corruption Purged 27 | . . . . . . . . . 5 1 . . . . . . . 1 . . . . . . . 9 . . . . . . . . . . . 11 . Corruption Blocked 36 | . . . . . . . . . . . . . . . . . . . . . . . . . . . . . . 7 1 11 1 . 6 . 1 9 . Effects 215 | . . . . . . . 24 72 28 2 1 9 4 1 . . . 9 . . . 5 . 1 15 3 . . 7 . . 33 . . . . . 1 . Message Errors 58 | . . . . . . . 3 27 6 1 . 3 . . . . . 2 . . . 1 . . 5 1 . . 2 . . 6 . . . . . 1 . Matter Fused 56 | . . . . . . . 8 14 6 1 . 1 . 1 . . . 5 . . . 1 . 1 5 1 . . 1 . . 11 . . . . . . . Heat Flow Errors 23 | . . . . . . . 3 8 7 . . 2 . . . . . . . . . 2 . . . . . . . . . 1 . . . . . . . Energy Discharges 21 | . . . . . . . 5 4 1 . . 1 1 . . . . 1 . . . . . . 2 1 . . 1 . . 4 . . . . . . . Parts Rejected 2 | . . . . . . . . . 1 . . . 1 . . . . . . . . . . . . . . . . . . . . . . . . . . Parts Fused 3 | . . . . . . . . 2 1 . . . . . . . . . . . . . . . . . . . . . . . . . . . . . . Data Loss (minor) 25 | . . . . . . . 2 7 5 . 1 1 1 . . . . . . . . 1 . . . . . . 1 . . 6 . . . . . . . Data Loss (major) 11 | . . . . . . . 2 4 . . . . 1 . . . . . . . . . . . 1 . . . . . . 3 . . . . . . . Misfires 6 | . . . . . . . . 5 . . . . . . . . . . . . . . . . . . . . 1 . . . . . . . . . . Alerts 7 | . . . . . . . . 1 1 . . 1 . . . . . 1 . . . . . . 2 . . . . . . 1 . . . . . . . Weapon Failures 3 | . . . . . . . 1 . . . . . . . . . . . . . . . . . . . . . 1 . . 1 . . . . . . . Overload Shots . | . . . . . . . . . . . . . . . . . . . . . . . . . . . . . . . . . . . . . . . . Overflow Damage 24351 | . . . 11 6 35 26 9 . 48 367 . 473 195 . . 1124 . 708 52 . . 188 80 . 398 211 4 581 249 542 785 1678 1818 3107 1003 . 356 10297 . Projectiles 581 | . . . 11 6 . . . . . . . . . . . . . 66 . . . . . . . . 4 . . . . 190 . . . . . 304 . Explosions 9816 | . . . . . 35 . 9 . . 235 . . . . . 63 . . . . . . . . . . . . . . . . . . . . . 9474 . Melee 13954 | . . . . . . 26 . . 48 132 . 473 195 . . 1061 . 642 52 . . 188 80 . 398 211 . 581 249 542 785 1488 1818 3107 1003 . 356 519 . Knockbacks 25 | . . . . . . . 7 . . 3 . 2 1 . . 3 . . . . . . . . . . 1 . . 1 . 3 . . . . . 4 . Impact 10 | . . . . . . . . . . 3 . 2 1 . . 3 . . . . . . . . . . 1 . . . . . . . . . . . . Kinetic 14 | . . . . . . . 6 . . . . . . . . . . . . . . . . . . . . . . 1 . 3 . . . . . 4 . Secondary 1 | . . . . . . . 1 . . . . . . . . . . . . . . . . . . . . . . . . . . . . . . . . Self-Inflicted Damage 138 | . . 41 . 6 . . . . . . . . . . . . . . . . . . . . . . . . 91 . . . . . . . . . . Shots 2 | . . 1 . . . . . . . . . . . . . . . . . . . . . . . . . . 1 . . . . . . . . . . Rammed 1 | . . . . 1 . . . . . . . . . . . . . . . . . . . . . . . . . . . . . . . . . . . Targets Rammed 1 | . . . . 1 . . . . . . . . . . . . . . . . . . . . . . . . . . . . . . . . . . . Kicked . | . . . . . . . . . . . . . . . . . . . . . . . . . . . . . . . . . . . . . . . . Crushed . | . . . . . . . . . . . . . . . . . . . . . . . . . . . . . . . . . . . . . . . . Highest Temperature 361 | . 81 252 48 28 260 . 299 275 268 11 135 218 66 6 6 52 10 90 . 21 361 163 121 7 45 23 . . 32 209 . 209 70 2 52 . 112 223 184 Average Temperature 41 | . 32 71 9 7 59 . 75 84 87 3 103 19 7 1 1 12 5 8 . 13 161 64 31 7 19 7 . . 13 43 . 44 39 2 28 . 48 144 90 Received Heat Transfer 3051 | . . . 243 111 60 . 593 117 432 87 . . 33 . . 9 . 93 . 36 . . 137 . 15 103 . . 55 9 24 405 18 27 90 . 9 309 36 Thermoelectric Energy+ 600 | . . . . . . . . . . . . . . . . . . . . . . . . . . . . . . . . . . . . . . 600 . Effects 3 | . . 1 . . . . . . 2 . . . . . . . . . . . . . . . . . . . . . . . . . . . . . . Energy Bleed 1 | . . 1 . . . . . . . . . . . . . . . . . . . . . . . . . . . . . . . . . . . . . Interference 2 | . . . . . . . . . 2 . . . . . . . . . . . . . . . . . . . . . . . . . . . . . . Siege Activations . | . . . . . . . . . . . . . . . . . . . . . . . . . . . . . . . . . . . . . . . . Martial Activations . | . . . . . . . . . . . . . . . . . . . . . . . . . . . . . . . . . . . . . . . . Shielding Activations . | . . . . . . . . . . . . . . . . . . . . . . . . . . . . . . . . . . . . . . . . Robots Disrupted 2 | . . . . . . . . . . . . . . . . . . . . . . . . . . . . . . . . 2 . . . . . . . Combat Hostiles 2 | . . . . . . . . . . . . . . . . . . . . . . . . . . . . . . . . 2 . . . . . . . Robots Corrupted 17 | . . . . . . . . . . 3 . 3 2 . . 3 . . . . . . . . . . 1 . . . . 4 . . . . . . 1 Combat Hostiles 8 | . . . . . . . . . . 1 . 1 1 . . . . . . . . . . . . . . . . . . 4 . . . . . . 1 Parts Fried 52 | . . . . . . . . . . 7 . 3 4 . . 16 . 1 . . . . . . . . 4 . . . 1 10 . . . . . 1 5 Impact Corruptions 40 | . . . . . . . . . . 5 . 13 5 . . 13 . 3 . . . . . . . . 1 . . . . . . . . . . . . Robots Melted 7 | . . . . 1 . . . . . . . . . . . . . . . . . . . . . . . . . . . 5 . . . . . 1 . Combat Hostiles 6 | . . . . . . . . . . . . . . . . . . . . . . . . . . . . . . . . 5 . . . . . 1 . Parts Melted 14 | . . 1 3 1 . . . . . . . . . . . . . . . . . . . . . 1 . . . . . 5 . . . . . 3 . Heat Transferred 5502 | . 148 444 2516 407 333 . . . . 400 . . . . . 50 . . . . . . . . . . . . . . . 650 . . . . . 554 . Parts Sabotaged 3 | . . . . . . . . . . . . . . . . . . . . . . . . . 3 . . . . . . . . . . . . . . Parts Stolen . | . . . . . . . . . . . . . . . . . . . . . . . . . . . . . . . . . . . . . . . . Parts Stripped . | . . . . . . . . . . . . . . . . . . . . . . . . . . . . . . . . . . . . . . . . Power Chain Reactions . | . . . . . . . . . . . . . . . . . . . . . . . . . . . . . . . . . . . . . . . . Alert | -11 -10 -10 -9 -9 -9 -8 -8 -8 -8 -7 -7 -7 -7 -7 -7 -5 -5 -5 -5 -5 -5 -4 -4 -4 -4 -4 -4 -4 -4 -3 -3 -3 -2 -2 -1 -1 -1 -1 -1 ------- Run | Yrd Mat Min Mat Min Exi Min Mat Gar Mat Fac Was Fac Sto Rec Scr Fac Was Fac Upp Upp War Pro Fac Was Fac Ext Cet Arc Hub Res Qua Frg Res Tes Acc Gar Acc Com Ac0 Maximum Alert Level 5 | . . 1 1 . . . 2 4 3 2 . . . . . 2 1 2 . . . . 2 . 1 1 . . 2 1 2 4 1 1 . . 1 5 . Low Security (%) 79 | 100 100 96 86 100 . 100 40 . . 25 100 100 100 100 . 46 85 43 . . . . 23 100 82 92 100 100 53 95 76 27 81 97 100 100 99 8 . Level 1 7 | . . 3 13 . . . 57 39 . 71 . . . . . . 15 21 . . . . 58 . 17 7 . . 43 4 11 33 18 2 . . . . . Level 2 3 | . . . . . . . 1 16 38 2 . . . . . 52 . 34 . . . . 18 . . . . . 2 . 11 9 . . . . . . . Level 3 1 | . . . . . . . . 22 61 . . . . . . . . . . . . . . . . . . . . . . 16 . . . . . . . Level 4 . | . . . . . . . . 19 . . . . . . . . . . . . . . . . . . . . . . . 13 . . . . . . . Level 5 7 | . . . . . . . . . . . . . . . . . . . . . . . . . . . . . . . . . . . . . . 90 . High Security . | . . . . . . . . . . . . . . . . . . . . . . . . . . . . . . . . . . . . . . . . Max Security . | . . . . . . . . . . . . . . . . . . . . . . . . . . . . . . . . . . . . . . . . Peak Influence 1313 | 10 80 211 293 135 . 7 406 1236 846 413 125 107 164 70 . 628 215 661 . . . . 497 57 340 259 188 182 529 258 620 1313 341 315 96 13 196 228 . Initial 602 | . . . 76 45 . . 2 170 602 252 125 80 15 . . . 164 70 . . . . 152 57 32 147 56 63 . 258 96 348 233 177 16 13 7 34 . Average 105 | 1 18 22 105 23 . . 218 680 713 287 121 28 36 24 . 315 160 281 . . . . 309 53 81 100 119 87 165 91 167 491 147 78 16 13 87 82 . Influence Increases 27199 | 20 118 385 775 279 . 17 960 1086 753 509 . 271 418 93 . 1527 87 2390 40 75 . 135 771 . 976 1092 342 217 1423 1027 2292 1919 1002 1248 493 . 381 4063 15 Destroy 0b10 Robot/C 12900 | . 60 220 420 180 . . 600 320 400 120 . 20 120 . . 740 . 1180 40 . . 40 100 . 320 560 160 80 540 340 1300 1160 520 720 300 . 160 2180 . Destroy 0b10 Robot/NC 1260 | 20 20 . 90 35 . 10 60 . 50 50 . 25 15 . . 100 . 150 . . . 20 15 . 75 40 10 45 40 70 75 40 50 105 30 . 5 15 . Destroy Leader 2100 | . 12 40 130 20 . . 176 . 120 46 . 16 22 . . 150 . 256 . . . . 12 . 92 76 . . 108 150 186 100 134 94 78 . 30 52 . Allied During Kill 2478 | . . . . 9 . . . 47 97 . . . 85 . . 271 . 324 . . . . 17 . 30 207 149 75 130 35 377 144 5 143 15 . 44 274 . Trap Triggered on 0b10 160 | . . . . . . . . . . . . 30 . . . . . 10 . . . . . . . . . . . . . . 60 30 . . . 30 . Successful Hack 839 | . 11 . 51 . . 7 17 30 13 14 . 96 33 . . 66 . 51 . . . . 14 . 54 19 . . 72 144 53 50 2 12 15 . . 15 . Select Force Hacks 290 | . . . . . . . . . . . . . . 90 . . . . . . . . . . 50 . . . 150 . . . . . . . . . . Disable Machine 1110 | . 15 90 15 15 . . 30 . 45 90 . . 60 . . 30 . 15 . . . . . . . 45 15 15 105 15 105 255 . 90 15 . 15 15 15 Anti-Garrison Action 600 | . . . . . . . . 550 . . . . . . . . . . . . . . . . . . . . . . . . . . . . . 50 . Destroy Structure 2687 | . . 5 9 20 . . 17 139 13 39 . 9 8 3 . 80 72 74 . . . . 28 . 40 100 8 2 218 78 76 50 96 9 25 . 37 1432 . Advance Influence 150 | . . . . . . . . . . . . . . . . . . . . . . . 150 . . . . . . . . . . . . . . . . Partial Spotted 645 | . . . . . . . . . . 45 . 15 45 . . 60 15 60 . . . . 15 . 90 . . . 30 105 30 . 75 30 15 . 15 . . Lose Combat Pursuer 1980 | . . 30 60 . . . 60 . 15 105 . 60 30 . . 30 . 270 . 75 . 75 420 . 225 45 . . 30 90 90 120 60 15 . . 75 . . Influence Decreases 27199 | 20 118 190 853 396 . 10 705 112 1434 705 244 351 453 23 70 1056 457 2009 465 77 55 131 610 118 723 1291 285 375 930 1349 1844 2123 1102 1536 503 4 340 864 3268 Entered New Map 6781 | . . . 119 72 . . 5 92 634 303 234 35 20 . 70 . 307 31 179 12 55 . 2 108 15 153 45 95 . 235 75 271 182 138 11 4 6 20 3253 Time Decay 11398 | 20 118 190 574 324 . 10 518 . 380 362 10 316 228 23 . 526 110 728 246 65 . 131 318 10 444 496 130 240 380 610 714 722 770 685 392 . 274 334 . Search Patrol Dispatched 200 | . . . . . . . . . . . . . . . . . . . . . . . 200 . . . . . . . . . . . . . . . . Lost Part 561 | . . . 10 . . . 30 . 40 40 . . . . . . . 90 . . . . 10 . 52 . 10 . 10 14 10 90 . . 20 . . 120 15 Lost Ally 4844 | . . . . . . . 2 20 80 . . . 205 . . 380 40 1160 40 . . . 80 . 212 377 100 40 240 190 745 140 . 413 80 . 60 240 . Purge Threat 3415 | . . . 150 . . . 150 . 300 . . . . . . 150 . . . . . . . . . 265 . . 300 300 300 900 150 300 . . . 150 . Squads Dispatched 209 | . . . 2 . . . 3 . 6 8 . 4 4 . . 18 . 31 . 1 . . 4 . 13 4 . . 11 15 20 13 15 14 15 . 4 4 . Investigation 41 | . . . . . . . 1 . 1 2 . 1 2 . . 4 . 5 . . . . 2 . 6 1 . . 8 3 . 1 2 2 . . . . . Extermination 99 | . . . . . . . . . . 2 . 3 1 . . 5 . 12 . . . . 1 . 5 . . . 2 8 10 7 12 9 15 . 4 3 . Reinforcement 37 | . . . 2 . . . 1 . 1 4 . . 1 . . 2 . 7 . . . . 1 . 1 3 . . 1 1 8 . 1 3 . . . . . Assault 16 | . . . . . . . . . 1 . . . . . . 4 . . . 1 . . . . . . . . . 2 2 5 . . . . . 1 . Garrison 16 | . . . . . . . 1 . 3 . . . . . . 3 . 7 . . . . . . 1 . . . . 1 . . . . . . . . . Intercept . | . . . . . . . . . . . . . . . . . . . . . . . . . . . . . . . . . . . . . . . . Searches Triggered 2 | . . . . . . . . . . . . . . . . . . . . . . . 2 . . . . . . . . . . . . . . . . Unchained Authorized 6 | . . . . . . . . . . . . . . . . . . 1 . . . . . . . . . . . . 4 . . 1 . . . . . Construction Impeded 4 | . . . . . . . . . 1 1 . . . . . . . . . . . . . . . 1 . . . . 1 . . . . . . . . Haulers Reinforced 2 | . . . . . . . . . . 1 . . . . . . . . . . . . 1 . . . . . . . . . . . . . . . . Active Scanning Responses . | . . . . . . . . . . . . . . . . . . . . . . . . . . . . . . . . . . . . . . . . Cargo Convoy Interrupts 3 | . . . . . . . . . . . . . . . . 1 . 1 . . . . . . 1 . . . . . . . . . . . . . . Stealth | -11 -10 -10 -9 -9 -9 -8 -8 -8 -8 -7 -7 -7 -7 -7 -7 -5 -5 -5 -5 -5 -5 -4 -4 -4 -4 -4 -4 -4 -4 -3 -3 -3 -2 -2 -1 -1 -1 -1 -1 --------- Run | Yrd Mat Min Mat Min Exi Min Mat Gar Mat Fac Was Fac Sto Rec Scr Fac Was Fac Upp Upp War Pro Fac Was Fac Ext Cet Arc Hub Res Qua Frg Res Tes Acc Gar Acc Com Ac0 Distress Signals 78 | . . . 3 . . . 3 . 4 1 . 1 1 . . 2 . 11 . . . 12 1 . 1 4 2 . 2 2 2 . 1 1 . . 2 22 . Communications Jammed 104 | . . . . . . . . . . . . . 12 . . 3 . 5 . . . . . . 11 . . . 10 14 . 6 5 29 9 . . . . Distress Signals 100 | . . . . . . . . . . . . . 12 . . 3 . 4 . . . . . . 10 . . . 10 12 . 6 5 29 9 . . . . Times Spotted 819 | . 6 12 37 10 15 . 44 26 30 23 6 17 12 . 25 33 5 64 1 14 . 8 44 5 29 21 5 6 25 36 43 79 34 36 18 . 14 26 10 Peak Tracking Total 20 | . 2 3 4 3 8 . 5 4 6 5 6 3 5 . 13 16 3 10 1 9 . 2 20 6 11 11 5 1 8 4 6 20 4 10 4 . 6 5 7 Tactical Retreats 91 | . . 1 2 . 2 . 3 . 1 3 . 2 2 . 2 1 . 25 . 2 . 2 7 . 7 3 . . 1 6 1 5 4 3 . . 4 2 . ID Masks Used 1 | . . . . . . . . . . . . . . . . . . . . . . . . . . . . . . . . . . . 1 . . . . IFF Responses 1340 | . . . . . . . . . . . . . . . . . . . . . . . . . . . . . . . . . . . 1102 238 . . . Traps | -11 -10 -10 -9 -9 -9 -8 -8 -8 -8 -7 -7 -7 -7 -7 -7 -5 -5 -5 -5 -5 -5 -4 -4 -4 -4 -4 -4 -4 -4 -3 -3 -3 -2 -2 -1 -1 -1 -1 -1 ------- Run | Yrd Mat Min Mat Min Exi Min Mat Gar Mat Fac Was Fac Sto Rec Scr Fac Was Fac Upp Upp War Pro Fac Was Fac Ext Cet Arc Hub Res Qua Frg Res Tes Acc Gar Acc Com Ac0 Traps Triggered 62 | . . . . . . . 2 13 . 2 . . . . . 2 . 4 . 1 2 . 1 . 6 3 . . 1 3 3 13 4 . . . 2 . . Indirectly . | . . . . . . . . . . . . . . . . . . . . . . . . . . . . . . . . . . . . . . . . Trap Hack Attempts 228 | . . . . . . . . . . . . 75 1 . . . . 152 . . . . . . . . . . . . . . . . . . . . . Triggered . | . . . . . . . . . . . . . . . . . . . . . . . . . . . . . . . . . . . . . . . . Disarmed 24 | . . . . . . . . . . . . . . . . . . 6 . . . . . . . . . . . . 4 . . . 12 . . 2 . Reprogrammed 39 | . . . . . . . . . . . . 10 6 . . . . 5 . . . . . . . . . . . . . . 6 6 . . . 6 . Reused 21 | . . . . . . . . . . . . 3 . . . . . 1 . 1 . . 2 . . . . . . . . . 6 3 . . . 5 . Traps Extracted 8 | . . . . . . . . . . . . 4 . . . . . 4 . . . . . . . . . . . . . . . . . . . . . Installed 10 | . . . . . . . . . . . . . . . . . . 2 . 4 . . 4 . . . . . . . . . . . . . . . . Triggered 16 | . . . . . . . . . . . . 3 . . . . . 1 . . . . . . . . . . . . . . 6 3 . . . 3 . Most Traps Carried 5 | . . . . . . . . . . . . 4 4 4 4 4 4 5 4 4 4 4 4 . . . . . . . . . . . . . . . . Objects Rigged 4 | . . . . . . . . . . . . . . . . 4 . . . . . . . . . . . . . . . . . . . . . . . Exploded 1 | . . . . . . . . . . . . . . . . 1 . . . . . . . . . . . . . . . . . . . . . . . Machines | -11 -10 -10 -9 -9 -9 -8 -8 -8 -8 -7 -7 -7 -7 -7 -7 -5 -5 -5 -5 -5 -5 -4 -4 -4 -4 -4 -4 -4 -4 -3 -3 -3 -2 -2 -1 -1 -1 -1 -1 ---------- Run | Yrd Mat Min Mat Min Exi Min Mat Gar Mat Fac Was Fac Sto Rec Scr Fac Was Fac Upp Upp War Pro Fac Was Fac Ext Cet Arc Hub Res Qua Frg Res Tes Acc Gar Acc Com Ac0 Machines Disabled 99 | . 1 6 1 1 11 . 2 6 3 6 . . 4 . 3 2 . 1 . . . . . . . 3 1 1 7 1 7 20 . 6 1 . 1 3 1 Max in Single Turn 6 | . 1 4 1 1 2 . 1 2 1 5 . . 1 . 1 1 . 1 . . . . . . . . 1 . 6 . 1 2 . 1 1 . 1 2 1 Garrison Access 27 | . . . . . . . . . . 1 . 3 1 . . 1 . 1 . . . . 2 . 3 . . . 1 4 1 1 3 1 4 . . . . Garrison Relay 4 | . . . . . . . . 4 . . . . . . . . . . . . . . . . . . . . . . . . . . . . . . . Phase Generator 2 | . . . . . . . . 1 . . . . . . . . . . . . . . . . . . . . . . . . . . . . . 1 . Network Hub 4 | . . . . . . . . . . . . . . . . . . . . . . . . . . . . . 4 . . . . . . . . . . Energy Cycler 2 | . . . . . . . . . . . . . . . . . . . . . . . . . . 2 . . . . . . . . . . . . . Machines Repaired . | . . . . . . . . . . . . . . . . . . . . . . . . . . . . . . . . . . . . . . . . Machines Dismantled . | . . . . . . . . . . . . . . . . . . . . . . . . . . . . . . . . . . . . . . . . Machines Sabotaged 3 | . . . . . . . . . . . . . . . . . . . . . . . . . . . . . 3 . . . . . . . . . . Overloaded Fab Kills 5 | . . . . . . . . . . . . . . . . . . . . . . . . . 5 . . . . . . . . . . . . . . Hacking | -11 -10 -10 -9 -9 -9 -8 -8 -8 -8 -7 -7 -7 -7 -7 -7 -5 -5 -5 -5 -5 -5 -4 -4 -4 -4 -4 -4 -4 -4 -3 -3 -3 -2 -2 -1 -1 -1 -1 -1 --------- Run | Yrd Mat Min Mat Min Exi Min Mat Gar Mat Fac Was Fac Sto Rec Scr Fac Was Fac Upp Upp War Pro Fac Was Fac Ext Cet Arc Hub Res Qua Frg Res Tes Acc Gar Acc Com Ac0 Machines Accessed 278 | . 4 . 9 1 2 1 11 3 8 8 . 15 12 4 . 15 . 22 . 1 . . 8 . 20 8 1 . 9 27 15 9 25 13 16 . . 10 1 Terminals 160 | . 4 . 6 . . 1 7 3 5 3 . 7 10 1 . 6 . 12 . . . . 2 . 10 8 1 . 8 14 9 5 12 8 8 . . 10 . Fabricators 28 | . . . . . . . . . . 2 . 2 . . . 5 . 4 . . . . 1 . 5 . . . . 3 . . 3 2 1 . . . . Repair Stations 15 | . . . 1 . . . 1 . 1 1 . 1 1 . . 1 . 1 . . . . . . . . . . . 1 2 1 2 1 . . . . . Recycling Units 22 | . . . . . . . 1 . 1 1 . . . 3 . 1 . 3 . . . . 1 . 2 . . . . 3 . . 4 . 2 . . . . Scanalyzers 20 | . . . 2 . . . 1 . 1 . . 2 . . . 1 . 1 . . . . 2 . . . . . . 3 3 2 1 1 . . . . . Garrison Access 28 | . . . . . . . 1 . . 1 . 3 1 . . 1 . 1 . . . . 2 . 3 . . . 1 3 1 1 3 1 5 . . . . Total Hacks 911 | . 8 . 40 1 5 2 33 9 22 20 . 36 24 7 . 60 . 59 . 1 . . 14 . 50 28 3 . 39 139 56 32 93 40 51 . . 34 5 Successful 615 | . 6 . 22 1 5 1 19 2 11 9 . 25 14 6 . 36 . 23 . 1 . . 12 . 33 16 1 . 21 94 26 18 90 35 49 . . 34 5 Failed 293 | . 2 . 18 . . 1 14 7 11 11 . 11 10 1 . 24 . 36 . . . . 2 . 17 11 2 . 18 44 29 14 3 5 2 . . . . Catastrophic 50 | . . . 4 . . 1 2 3 3 2 . 3 1 . . 6 . 8 . . . . 1 . 2 2 1 . . 6 5 . . . . . . . . Database Lockouts 3 | . . . . . . . . . . . . . . . . . . . . . . . . . . 1 . . . 1 1 . . . . . . . . Manual 432 | . 5 . 25 . . 2 13 2 12 7 . 8 11 4 . 27 . 33 . . . . 5 . 23 15 . . 20 66 23 9 45 24 29 . . 24 . Terminals 561 | . 8 . 33 . . 2 19 9 15 10 . 17 20 1 . 17 . 27 . . . . 3 . 23 28 3 . 37 86 36 19 56 30 28 . . 34 . Fabricators 97 | . . . . . . . . . . 2 . 5 . . . 31 . 9 . . . . 4 . 14 . . . . 15 . . 10 5 2 . . . . Repair Stations 58 | . . . 3 . . . 5 . 4 4 . 3 2 . . 3 . 5 . . . . . . . . . . . 6 12 3 6 2 . . . . . Recycling Units 72 | . . . . . . . 3 . 1 2 . . . 6 . 5 . 12 . . . . 1 . 7 . . . . 13 . . 13 . 9 . . . . Scanalyzers 55 | . . . 4 . . . 4 . 2 . . 5 . . . 2 . 4 . . . . 4 . . . . . . 13 6 8 2 1 . . . . . Garrison Access 56 | . . . . . . . 2 . . 2 . 6 2 . . 2 . 2 . . . . 2 . 6 . . . 2 6 2 2 6 2 12 . . . . Terminal Hacks 219 | . 6 . 8 1 5 1 5 1 5 3 . 6 6 . . 3 . 6 . 1 . . . . 7 12 1 . 9 26 9 12 33 15 15 . . 18 5 Record 8 | . . . . . 4 . . . . . . . . . . . . . . . . . . . . . . . . . . 4 . . . . . . . Part Schematic 6 | . 1 . . . . . . . . . . . . . . . . 1 . . . . . . . . . . . 2 . . 1 1 . . . . . Robot Schematic 1 | . . . . . . . . . . . . . . . . . . . . . . . . . . 1 . . . . . . . . . . . . . Robot Analysis 10 | . 2 . 2 . . 1 . . . . . . . . . . . . . . . . . . . 2 . . . . . . 3 . . . . . . Prototype ID Bank 4 | . . . . . . . 1 . . . . . . . . . . . . . . . . . . 1 . . . 1 . . 1 . . . . . . Open Door 12 | . . . . 1 . . . . . . . . 3 . . . . . . 1 . . . . 1 2 1 . . . 1 . . . 1 . . 1 . Level Access Points 6 | . . . . . . . . . . . . . . . . . . . . . . . . . . . . . 1 1 . . 1 1 1 . . 1 . Branch Access Points 5 | . . . 1 . . . . . . . . . 1 . . . . . . . . . . . . . . . . 1 . . 1 . 1 . . . . Emergency Access Points 1 | . . . . . . . . . . . . . . . . . . . . . . . . . . . . . . . . . 1 . . . . . . Machine Index 6 | . . . . . . . . . . . . . . . . . . . . . . . . . . . . . 1 . 1 . 1 1 1 . . 1 . Terminal Index 6 | . . . 1 . . . . . . 1 . 1 . . . . . . . . . . . . 1 . . . 1 1 . . . . . . . . . Fabricator Index 1 | . . . . . . . . . . . . . . . . . . . . . . . . . 1 . . . . . . . . . . . . . . Repair Station Index 1 | . . . . . . . . . . . . . . . . . . . . . . . . . . . . . . 1 . . . . . . . . . Recycling Unit Index 1 | . . . . . . . . . . . . . . . . . . . . . . . . . . . . . . 1 . . . . . . . . . Garrison Index 2 | . . . . . . . . . . . . . . . . . . 1 . . . . . . . . . . . 1 . . . . . . . . . Unreport Threat 23 | . . . 1 . . . 1 . 2 . . . . . . 1 . . . . . . . . . 2 . . 2 2 2 6 1 2 . . . 1 . Locate Traps 38 | . 1 . 1 . . . 2 . 2 1 . 4 . . . 1 . 4 . . . . . . 2 2 . . 2 . 1 1 8 1 2 . . 3 . Disarm Traps 5 | . . . . . . . . . . . . . . . . . . . . . . . . . . . . . . . 1 . . . 2 . . 2 . Reprogram Traps 4 | . . . . . . . . . . . . . 1 . . . . . . . . . . . . . . . . . . . 1 1 . . . 1 . Dispatch Records 1 | . . . . . . . . . . . . . . . . . . . . . . . . . . . . . . 1 . . . . . . . . . Security Status 1 | . . . . . . . . . . . . . . . . . . . . . . . . . . . . . . . . . . . . . . 1 . Extermination Status 1 | . . . . . . . . . . . . . . . . . . . . . . . . . . . . . . . . . 1 . . . . . . Recall Investigation 6 | . . . . . . . . . . . . . . . . . . . . . . . . . . 1 . . . 2 . . 2 1 . . . . . Recall Extermination 17 | . . . . . . . . . . . . . . . . . . . . . . . . . 2 . . . . 5 1 . 5 2 . . . 2 . Recall Reinforcements 4 | . . . . . . . . . . . . . . . . . . . . . . . . . . . . . . 1 . . 1 2 . . . . . Hauler Manifests 4 | . 1 . . . . . . . 1 . . . . . . . . . . . . . . . . . . . . . . . 1 . 1 . . . . Registered Components 8 | . 1 . 1 . . . 1 . . . . 1 . . . . . . . . . . . . . . . . . 1 . . 1 . 1 . . 1 . Registered Prototypes 5 | . . . . . . . . . . . . . . . . . . . . . . . . . . . . . . 2 1 . . . 1 . . 1 . Zone Layout 23 | . . . 1 . . . . . . 1 . . 1 . . 1 . . . . . . . . . 1 . . 2 3 1 . 3 3 4 . . 2 . Security Stations 1 | . . . . . . . . 1 . . . . . . . . . . . . . . . . . . . . . . . . . . . . . . . Proto ID Catalog 2 | . . . . . 1 . . . . . . . . . . . . . . . . . . . . . . . . . . 1 . . . . . . . Disengage Seal 1 | . . . . . . . . . . . . . . . . . . . . . . . . . . . . . . . . . . . . . . 1 . Gate Test 138-A 1 | . . . . . . . . . . . . . . . . . . . . . . . . . . . . . . . . . . . . . . . 1 Gate Test 138-B 2 | . . . . . . . . . . . . . . . . . . . . . . . . . . . . . . . . . . . . . . . 2 Gate Test 138-C 2 | . . . . . . . . . . . . . . . . . . . . . . . . . . . . . . . . . . . . . . . 2 Fabricator Hacks 52 | . . . . . . . . . . 1 . 3 . . . 17 . 2 . . . . 3 . 9 . . . . 8 . . 5 3 1 . . . . Network Status 6 | . . . . . . . . . . 1 . 1 . . . 1 . . . . . . . . . . . . . 1 . . 1 . 1 . . . . Load Schematic 27 | . . . . . . . . . . . . 1 . . . 9 . 2 . . . . 2 . 5 . . . . 4 . . 2 2 . . . . . Build 19 | . . . . . . . . . . . . 1 . . . 7 . . . . . . 1 . 4 . . . . 3 . . 2 1 . . . . . Repair Station Hacks 31 | . . . 1 . . . 1 . 2 1 . 2 2 . . 1 . 1 . . . . . . . . . . . 6 4 2 6 2 . . . . . Scan Component 18 | . . . 1 . . . 1 . 1 1 . 1 1 . . 1 . . . . . . . . . . . . . 3 3 1 3 1 . . . . . Repair 12 | . . . . . . . . . 1 . . 1 1 . . . . . . . . . . . . . . . . 3 1 1 3 1 . . . . . Refit 1 | . . . . . . . . . . . . . . . . . . 1 . . . . . . . . . . . . . . . . . . . . . Recycling Unit Hacks 16 | . . . . . . . 1 . . . . . . 3 . . . . . . . . . . 1 . . . . 3 . . 5 . 3 . . . . Report Inventory 13 | . . . . . . . 1 . . . . . . 3 . . . . . . . . . . 1 . . . . 2 . . 4 . 2 . . . . Retrieve Components 3 | . . . . . . . . . . . . . . . . . . . . . . . . . . . . . . 1 . . 1 . 1 . . . . Scanalyzer 36 | . . . 4 . . . 3 . 2 . . 5 . . . . . 1 . . . . 3 . . . . . . 12 3 1 2 . . . . . . Insert Component 13 | . . . . . . . 1 . 1 . . 2 . . . . . 1 . . . . 1 . . . . . . 4 1 1 1 . . . . . . Analyze 10 | . . . . . . . 2 . 1 . . 3 . . . . . . . . . . . . . . . . . 4 . . . . . . . . . Retrieve Study 13 | . . . 4 . . . . . . . . . . . . . . . . . . . 2 . . . . . . 4 2 . 1 . . . . . . Garrison Access Hacks 51 | . . . . . . . 1 . . 2 . 5 2 . . 2 . 2 . . . . 2 . 6 . . . 2 6 2 2 6 2 9 . . . . Unlock Access 2 | . . . . . . . 1 . . . . . . . . . . . . . . . . . . . . . . . . . . . 1 . . . . Seal Access 26 | . . . . . . . . . . 1 . 3 1 . . 1 . 1 . . . . 2 . 3 . . . 1 3 1 1 3 1 4 . . . . Coupler Status 23 | . . . . . . . . . . 1 . 2 1 . . 1 . 1 . . . . . . 3 . . . 1 3 1 1 3 1 4 . . . . Unauthorized Hacks 210 | . . . 9 . . . 8 1 2 2 . 4 4 3 . 13 . 11 . . . . 4 . 10 4 . . 10 33 8 1 33 13 21 . . 16 . Terminals 139 | . . . 9 . . . 8 1 1 1 . 2 4 . . 5 . 4 . . . . 2 . 3 4 . . 10 20 7 1 20 10 11 . . 16 . Track 41 | . . . . . . . . . . . . . 1 . . 1 . 2 . . . . . . . 1 . . 2 8 2 1 7 6 4 . . 6 . Assimilate 14 | . . . 1 . . . . . . . . 1 1 . . 1 . . . . . . . . . 1 . . . 4 2 . 2 . . . . 1 . Botnet 35 | . . . 2 . . . 2 1 1 1 . 1 2 . . 2 . 2 . . . . 1 . 3 2 . . 2 2 2 . 3 2 2 . . 2 . Detonate 2 | . . . . . . . . . . . . . . . . 1 . . . . . . . . . . . . 1 . . . . . . . . . . Disrupt 4 | . . . . . . . . . . . . . . . . . . . . . . . . . . . . . . . 1 . 2 1 . . . . . Operators 7 | . . . 1 . . . 1 . . . . . . . . . . . . . . . . . . . . . . 1 . . 1 1 1 . . 1 . Skim 31 | . . . 5 . . . 5 . . . . . . . . . . . . . . . 1 . . . . . . 5 . . 5 . 4 . . 6 . Sabotage 5 | . . . . . . . . . . . . . . . . . . . . . . . . . . . . . 5 . . . . . . . . . . Fabricators 26 | . . . . . . . . . . . . 1 . . . 5 . 1 . . . . 1 . 3 . . . . 7 . . 5 2 1 . . . . Report 3 | . . . . . . . . . . . . . . . . . . . . . . . . . . . . . . 1 . . 2 . . . . . . Prioritize 6 | . . . . . . . . . . . . . . . . 1 . . . . . . . . . . . . . 2 . . 2 1 . . . . . Liberate 2 | . . . . . . . . . . . . . . . . . . . . . . . . . . . . . . 2 . . . . . . . . . Haulers 3 | . . . . . . . . . . . . . . . . . . . . . . . . . . . . . . 1 . . 1 . 1 . . . . Overload 1 | . . . . . . . . . . . . . . . . . . . . . . . . . 1 . . . . . . . . . . . . . . Recompile 11 | . . . . . . . . . . . . 1 . . . 4 . 1 . . . . 1 . 2 . . . . 1 . . . 1 . . . . . Repair Stations 2 | . . . . . . . . . 1 1 . . . . . . . . . . . . . . . . . . . . . . . . . . . . . Mechanics 1 | . . . . . . . . . 1 . . . . . . . . . . . . . . . . . . . . . . . . . . . . . . Patch 1 | . . . . . . . . . . 1 . . . . . . . . . . . . . . . . . . . . . . . . . . . . . Recycling Units 37 | . . . . . . . . . . . . . . 3 . 3 . 6 . . . . 1 . 4 . . . . 6 . . 8 . 6 . . . . Monitor 3 | . . . . . . . . . . . . . . . . . . . . . . . . . 1 . . . . . . . 1 . 1 . . . . Reject 10 | . . . . . . . . . . . . . . . . 1 . 1 . . . . . . 1 . . . . 2 . . 3 . 2 . . . . Recyclers 7 | . . . . . . . . . . . . . . . . 1 . 2 . . . . . . 1 . . . . 1 . . 1 . 1 . . . . Mask 14 | . . . . . . . . . . . . . . . . 1 . 3 . . . . 1 . 1 . . . . 3 . . 3 . 2 . . . . Tunnel 3 | . . . . . . . . . . . . . . 3 . . . . . . . . . . . . . . . . . . . . . . . . . Scanalyzers 2 | . . . . . . . . . . . . . . . . . . . . . . . . . . . . . . . 1 . . 1 . . . . . Researchers 2 | . . . . . . . . . . . . . . . . . . . . . . . . . . . . . . . 1 . . 1 . . . . . Garrison Access 4 | . . . . . . . . . . . . 1 . . . . . . . . . . . . . . . . . . . . . . 3 . . . . Broadcast 1 | . . . . . . . . . . . . . . . . . . . . . . . . . . . . . . . . . . . 1 . . . . Reprogram 1 | . . . . . . . . . . . . 1 . . . . . . . . . . . . . . . . . . . . . . . . . . . Intercept 1 | . . . . . . . . . . . . . . . . . . . . . . . . . . . . . . . . . . . 1 . . . . Watchers 1 | . . . . . . . . . . . . . . . . . . . . . . . . . . . . . . . . . . . 1 . . . . Data Cores Recovered 9 | . . . . . . . . . . . . . . . . 1 . 3 . . . . . . . . . . . 1 1 . 1 2 . . . . . Used 4 | . . . . . . . . . . . . . . . . 1 . . . . . . . . . . . . . 1 . . 1 1 . . . . . Hacking Detections 188 | . 4 . 9 . . 1 11 3 8 6 . 14 8 1 . 12 . 16 . . . . 2 . 13 5 . . 8 19 8 5 14 5 10 . . 6 . Full Trace Events 21 | . . . . . . . 1 2 . 1 . . 1 . . . . 4 . . . . . . 3 . . . 3 2 . 1 2 1 . . . . . Feedback Events 2 | . . . . . . . . 1 . . . . . . . . . 1 . . . . . . . . . . . . . . . . . . . . . Corruption 1 | . . . . . . . . 1 . . . . . . . . . . . . . . . . . . . . . . . . . . . . . . . Hackware Fried 1 | . . . . . . . . . . . . . . . . . . 1 . . . . . . . . . . . . . . . . . . . . . Feedback Blocked . | . . . . . . . . . . . . . . . . . . . . . . . . . . . . . . . . . . . . . . . . Robot Schematics Acquired 54 | . . . . . . . . . . . . . . . . . . . . . . . . . . 1 . . . . 53 . . . . . . . . Robots Built . | . . . . . . . . . . . . . . . . . . . . . . . . . . . . . . . . . . . . . . . . Authchips . | . . . . . . . . . . . . . . . . . . . . . . . . . . . . . . . . . . . . . . . . Time . | . . . . . . . . . . . . . . . . . . . . . . . . . . . . . . . . . . . . . . . . Total Robot Build Rating . | . . . . . . . . . . . . . . . . . . . . . . . . . . . . . . . . . . . . . . . . Part Schematics Acquired 49 | . 1 . . . . . . . 1 . . 2 . . 1 . . 1 . . . . . . . . . . . 6 22 2 1 12 . . . . . Parts Built 23 | . . . . . . . . . . . . 1 . . . 9 . . . . . . 1 . 5 . . . . 3 . . 3 1 . . . . . Authchips 11 | . . . . . . . . . . . . 1 . . . 5 . . . . . . 1 . 3 . . . . 1 . . . . . . . . . Time 1235 | . . . . . . . . . . . . 102 . . . 495 . . . . . . 152 . 249 . . . . 151 . . 48 38 . . . . . Total Part Build Rating 128 | . . . . . . . . . . . . 8 . . . 55 . . . . . . 5 . 25 . . . . 15 . . 15 5 . . . . . Part Studies Acquired 13 | . . . 4 . . . . . . . . . . . . . . . . . . . 2 . . . . . . 4 2 . 1 . . . . . . Parts Repaired 12 | . . . . . . . . . 1 . . 1 1 . . . . . . . . . . . . . . . . 3 1 1 3 1 . . . . . Time 598 | . . . . . . . . . 32 . . 44 35 . . . . . . . . . . . . . . . . 157 18 80 178 54 . . . . . Parts Recycled . | . . . . . . . . . . . . . . . . . . . . . . . . . . . . . . . . . . . . . . . . Recycled Matter . | . . . . . . . . . . . . . . . . . . . . . . . . . . . . . . . . . . . . . . . . Retrieved Matter . | . . . . . . . . . . . . . . . . . . . . . . . . . . . . . . . . . . . . . . . . Retrieved Components 6 | . . . . . . . . . . . . . . . . . . . . . . . . . . . . . . 2 . . 2 . 2 . . . . Parts Scanalyzed 7 | . . . . . . . 1 . . . . 2 . . . . . 1 . . . . . . . . . . . 3 . . . . . . . . . Part Schematics Acquired 7 | . . . . . . . . . 1 . . 2 . . . . . . . . . . . . . . . . . 4 . . . . . . . . . Parts Damaged 1 | . . . . . . . . . . . . . . . . . . . . . . . . . . . . . . 1 . . . . . . . . . Bothacking | -11 -10 -10 -9 -9 -9 -8 -8 -8 -8 -7 -7 -7 -7 -7 -7 -5 -5 -5 -5 -5 -5 -4 -4 -4 -4 -4 -4 -4 -4 -3 -3 -3 -2 -2 -1 -1 -1 -1 -1 ------------ Run | Yrd Mat Min Mat Min Exi Min Mat Gar Mat Fac Was Fac Sto Rec Scr Fac Was Fac Upp Upp War Pro Fac Was Fac Ext Cet Arc Hub Res Qua Frg Res Tes Acc Gar Acc Com Ac0 Used RIF Installer 1 | . . . . . . . . 1 . . . . . . . . . . . . . . . . . . . . . . . . . . . . . . . Robots Hacked 35 | . . . . . 4 . . 8 5 1 . . . 2 1 4 . 2 . . . . . . . . . . . 1 7 . . . . . . . . Non-combat 16 | . . . . . 3 . . . 3 1 . . . 1 . 4 . 2 . . . . . . . . . . . 1 1 . . . . . . . . Combat 19 | . . . . . 1 . . 8 2 . . . . 1 1 . . . . . . . . . . . . . . . 6 . . . . . . . . Robot Hacks Applied 36 | . . . . . 4 . . 9 5 1 . . . 2 1 4 . 2 . . . . . . . . . . . 1 7 . . . . . . . . parse_system 10 | . . . . . 4 . . . . . . . . 2 1 1 . 1 . . . . . . . . . . . . 1 . . . . . . . . find_chute 2 | . . . . . . . . . . 1 . . . . . 1 . . . . . . . . . . . . . . . . . . . . . . . find_fabricator 2 | . . . . . . . . . . . . . . . . 1 . . . . . . . . . . . . . 1 . . . . . . . . . drop_inventory 3 | . . . . . . . . . 3 . . . . . . . . . . . . . . . . . . . . . . . . . . . . . . find_recycling 1 | . . . . . . . . . . . . . . . . 1 . . . . . . . . . . . . . . . . . . . . . . . ignore_parts 1 | . . . . . . . . . . . . . . . . . . 1 . . . . . . . . . . . . . . . . . . . . . disable_scanner 6 | . . . . . . . . . . . . . . . . . . . . . . . . . . . . . . . 6 . . . . . . . . amplify_resonance 3 | . . . . . . . . 2 1 . . . . . . . . . . . . . . . . . . . . . . . . . . . . . . disable_weapons 1 | . . . . . . . . 1 . . . . . . . . . . . . . . . . . . . . . . . . . . . . . . . overwrite_iff 3 | . . . . . . . . 3 . . . . . . . . . . . . . . . . . . . . . . . . . . . . . . . formatsys_high 4 | . . . . . . . . 3 1 . . . . . . . . . . . . . . . . . . . . . . . . . . . . . . Relay Couplers Released 47 | . . . . . . . . 17 . 2 . 5 1 . . 3 . . . . . . . . 2 . . . 2 4 2 2 4 . 3 . . . . Machine Destruction 47 | . . . . . . . . 17 . 2 . 5 1 . . 3 . . . . . . . . 2 . . . 2 4 2 2 4 . 3 . . . . Attached 7 | . . . . . . . . 3 2 . . . . . . . . . . . . . . . . . . . . . 2 . . . . . . . . Fabnet Peak Effective % . | . . . . . . . . . . . . . . . . . . . . . . . . . . . . . . . . . . . . . . . . Robots Rewired 10 | . . . . . . . . 1 . . . . . . . . . . . . . . 1 . . 6 . . . . . 2 . . . . . . . Allies Hacked 27 | . . . . . . . . . . . . . 1 . . 2 . 8 . . . . . . 1 . . . 1 1 9 1 . . . . 3 . . Hacks Repelled 3 | . . . . . . . . . . . . . . . . 1 . 2 . . . . . . . . . . . . . . . . . . . . . Allies | -11 -10 -10 -9 -9 -9 -8 -8 -8 -8 -7 -7 -7 -7 -7 -7 -5 -5 -5 -5 -5 -5 -4 -4 -4 -4 -4 -4 -4 -4 -3 -3 -3 -2 -2 -1 -1 -1 -1 -1 -------- Run | Yrd Mat Min Mat Min Exi Min Mat Gar Mat Fac Was Fac Sto Rec Scr Fac Was Fac Upp Upp War Pro Fac Was Fac Ext Cet Arc Hub Res Qua Frg Res Tes Acc Gar Acc Com Ac0 Total Allies 324 | . . . 1 5 . . . 7 1 . . 1 11 . . 21 19 74 . . . . 4 . 15 39 . . 12 16 42 9 7 21 4 . 8 7 . Largest Group 21 | . . . 1 5 5 1 1 4 4 . . 1 10 . . 11 19 21 2 . . . 3 . 3 16 16 9 7 4 10 3 5 8 4 . 7 11 . Highest-Rated Group 702 | . . . 10 78 78 8 8 73 82 . . 26 173 . . 109 702 208 15 . . . 67 . 30 342 342 220 171 164 100 120 50 78 39 . 70 144 . Highest-Rated Ally 159 | . . . 10 31 31 8 8 29 29 . . 26 29 . . 10 50 10 10 . . . 48 . 10 159 51 51 51 82 10 120 10 10 10 . 10 45 . Total Orders 34 | . . . . . 5 2 2 . 2 . . . . . . . . . . . . . 3 . . . . . 2 5 . 6 . . . . . 7 . STAY 13 | . . . . . 2 . . . 1 . . . . . . . . . . . . . 2 . . . . . 1 4 . 3 . . . . . . . ROAM 1 | . . . . . 1 . . . . . . . . . . . . . . . . . . . . . . . . . . . . . . . . . . FOLLOW 8 | . . . . . 2 . . . . . . . . . . . . . . . . . 1 . . . . . 1 1 . 3 . . . . . . . GUARD 1 | . . . . . . . . . 1 . . . . . . . . . . . . . . . . . . . . . . . . . . . . . . EXPLORE 3 | . . . . . . 1 2 . . . . . . . . . . . . . . . . . . . . . . . . . . . . . . . . RETURN 8 | . . . . . . 1 . . . . . . . . . . . . . . . . . . . . . . . . . . . . . . . 7 . Ally Attacks 2948 | . . . . 8 34 . 1 50 96 . . . 59 . 88 214 146 462 4 . . . 39 . 77 155 105 40 117 105 586 48 . 253 20 . 37 194 10 Total Damage 46624 | . . . . 95 282 . 11 629 1200 . . . 740 . 3934 2737 3913 5416 55 . . . 685 . 1005 3773 1640 580 1553 1432 6975 991 . 2925 247 . 444 4979 383 Kills 406 | . . . . 3 3 . . 6 18 . . . 5 . 34 38 7 70 1 . . . 4 . 18 30 12 4 27 12 60 5 . 23 3 . 7 16 . Allies Corrupted 44 | . . . . 1 . . . . . . . . . . . 3 . 11 . . . . . . 2 . . . 4 2 13 1 . 2 1 . 1 3 . Allies Melted 3 | . . . . . . . . . . . . . . . . . . 1 . . . . . . . 1 . . 1 . . . . . . . . . . Turrets Deployed 4 | . . . . . . . . . . . . . . . 4 . . . . . . . . . . . . . . . . . . . . . . . . Intel | -11 -10 -10 -9 -9 -9 -8 -8 -8 -8 -7 -7 -7 -7 -7 -7 -5 -5 -5 -5 -5 -5 -4 -4 -4 -4 -4 -4 -4 -4 -3 -3 -3 -2 -2 -1 -1 -1 -1 -1 ------- Run | Yrd Mat Min Mat Min Exi Min Mat Gar Mat Fac Was Fac Sto Rec Scr Fac Was Fac Upp Upp War Pro Fac Was Fac Ext Cet Arc Hub Res Qua Frg Res Tes Acc Gar Acc Com Ac0 Active Infowar (turns) 92188 | . . . 80 . 2 . 283 . . 753 28 1044 661 95 331 1999 220 3557 531 252 123 595 707 29 1525 1841 279 561 1068 2429 3990 3385 5380 4695 50351 68 733 4588 5 Optics 16250 | . . . . . . . . . . . . . . . . . . 118 531 252 123 595 701 29 1525 1841 279 561 1068 2429 3990 2208 . . . . . . . Sensors 81100 | . . . . . 2 . . . . 310 27 1020 661 95 331 1999 203 3556 531 252 95 582 685 29 1376 1631 73 561 924 2410 976 2863 5237 949 50281 68 733 2640 . A.S.S. 626 | . . . . . . . . . . . . . . . . . . . . . . . . . . . . . . . . . . . . . . 626 . Zeronet 7776 | . . . . . . . . . . . . . . . . . . . . . . . . . . . . . . . 3209 25 . 4506 36 . . . . Terrain 965 | . . . . . . . 283 . . . . . . . . . . . . . . 274 408 . . . . . . . . . . . . . . . . Structural 11656 | . . . . . . . . . . . . . . . . 450 220 3267 531 252 123 595 412 . 745 702 277 561 86 1409 325 . 625 . 328 . 560 188 . Traps 198 | . . . . . . . . . . . . . . . . . . . . . . 198 . . . . . . . . . . . . . . . . . Seismic 114 | . . . . . . . . . . 114 . . . . . . . . . . . . . . . . . . . . . . . . . . . . . T.N.C. 22409 | . . . 80 . . . . . . 638 28 1044 661 95 331 1964 220 3556 531 252 123 595 705 29 1515 1841 279 561 1056 2429 3876 . . . . . . . . Machine Analysis 556 | . . . . . . . . . . . . . . . . . . . . . . . . . 556 . . . . . . . . . . . . . . Triangulation 593 | . . . . . . . . . . . . . . . . . . . . . . . . . 40 . . . . . 397 . . 156 . . . . . Cloaking 5069 | . . . . . . . . . . . . . . . . . . . . . . . . . 156 . 162 . . 6 . 552 1058 55 1349 . 238 1488 5 Jamming 13643 | . . . . . . . . . . 85 1 . 481 . . 274 . 1512 531 177 . . . . 474 . . . 55 1591 919 1687 3495 1438 424 . 191 308 . ECM 1 | . . . . . . . . . . 1 . . . . . . . . . . . . . . . . . . . . . . . . . . . . . ID Mask 46304 | . . . . . . . . . . . . . . . . . . . . . . . . . . . . . . . . . . . 46231 68 5 . . Robot Analysis Total 104 | . 2 . 2 . . 1 . . . . . . . . . . . . . . . . . . . 2 . . . . 94 . 3 . . . . . . Derelict Logs Recovered 7 | . . 1 . 1 . . . . . . . . . . . . . . 2 2 . 1 . . . . . . . . . . . . . . . . . Drone Launches 15 | . . . . . . 1 2 . . . . . . . . . . . . . . . . . . . . . . . . . . . . . . 10 2 Drone Recoveries 8 | . . . . . . 1 1 . . . . . . . . . . . . . . . . . . . . . . . . . . . . . . 6 . Exploration | -11 -10 -10 -9 -9 -9 -8 -8 -8 -8 -7 -7 -7 -7 -7 -7 -5 -5 -5 -5 -5 -5 -4 -4 -4 -4 -4 -4 -4 -4 -3 -3 -3 -2 -2 -1 -1 -1 -1 -1 ------------- Run | Yrd Mat Min Mat Min Exi Min Mat Gar Mat Fac Was Fac Sto Rec Scr Fac Was Fac Upp Upp War Pro Fac Was Fac Ext Cet Arc Hub Res Qua Frg Res Tes Acc Gar Acc Com Ac0 Turns Passed 109371 | 118 433 1499 1759 1359 3853 219 1676 2099 897 830 28 1044 661 95 331 1999 220 3557 531 252 123 595 713 29 1525 1841 279 561 1068 2429 3990 3425 5380 4696 50351 68 733 8017 88 Spaces Moved 61938 | 69 355 595 847 780 1454 127 774 1165 488 1097 116 1938 757 329 950 3307 603 6493 945 866 182 857 1285 99 2584 1793 203 243 1653 4921 3871 3513 4026 2895 1788 78 1211 6286 395 Core 594 | 69 157 . . . 164 . . . . . . . . . . . . . . . . . . . . . . . . . . . . 1 . . . 203 . Treads 2316 | . . . 4 . 5 . . 111 . 29 . . . . . . . . . . . . . . . . . . . . . 12 . . . . . 2155 . Legs 25 | . . . . . . . . . . . . . . . . . . . . . . . . . . . . . . . . . . . . . . 25 . Wheels 6204 | . 198 595 843 780 1285 127 774 1054 488 60 . . . . . . . . . . . . . . . . . . . . . . . . . . . . . Hover 2102 | . . . . . . . . . . . . . . . . . . . . . . . . . . . . . . . . 2102 . . . . . . . Flight 50697 | . . . . . . . . . . 1008 116 1938 757 329 950 3307 603 6493 945 866 182 857 1285 99 2584 1793 203 243 1653 4921 3871 1399 4026 2894 1788 78 1211 3903 395 Fastest Speed 6 | 50 50 145 135 140 110 125 110 125 110 24 17 23 20 23 23 11 22 6 27 20 27 27 14 28 25 28 27 27 27 15 22 8 8 15 16 17 17 16 8 Average Speed 45 | 50 91 145 159 154 222 144 124 140 112 36 22 23 23 23 23 23 22 24 27 26 27 27 26 28 28 28 29 27 27 24 25 42 14 17 16 17 17 94 12 Slowest Speed 1250 | 50 155 155 240 155 800 170 125 285 140 330 24 29 91 23 88 91 88 101 99 27 27 99 102 28 103 101 101 27 27 100 103 320 15 150 17 17 78 1250 16 Overloaded Moves 430 | . . . . . . . . . . . 27 . 1 . . 2 . 42 . 3 . . 39 . 28 . . . . 60 2 39 5 . . . . . 182 Propulsion Burnouts . | . . . . . . . . . . . . . . . . . . . . . . . . . . . . . . . . . . . . . . . . Robots Hopped 304 | . . . . . . . . . . 14 . 13 7 5 4 20 . 14 . . . . 14 4 19 30 . 2 36 26 10 10 32 18 6 . 6 9 5 Potential Cave-ins 2 | . . . . . . . . . . . . . . . . . . 2 . . . . . . . . . . . . . . . . . . . . . Cave-ins Triggered . | . . . . . . . . . . . . . . . . . . . . . . . . . . . . . . . . . . . . . . . . Teleports 60 | . . . . . 11 . . . 1 . . . . . . . . . . . . . . . . . . . . . 1 1 . . . . . 46 . Exploration Rate (%) 65 | 3 55 97 65 99 91 97 82 94 50 20 73 37 76 64 54 45 94 78 87 83 20 86 26 85 54 97 86 89 79 75 91 41 73 85 36 25 30 77 28 Regions Visited 39 Branch Regions 20 Pre-discovered Areas 11 | . . . 3 . 1 . 1 . . . . . . 3 . . . . . . . . . . . . . . . 1 . . 2 . . . . . . Known Exits Taken 26 | . . . 1 . . 1 1 . 1 . . 1 1 1 1 . . 1 1 1 1 1 . . 1 1 1 1 1 1 1 1 1 1 1 . 1 1 . Unknown Exits Taken 5 | 1 1 1 . 1 1 . . . . . . . . . . . . . . . . . . . . . . . . . . . . . . . . . . Scrap Searched 19 | . . 1 . 2 . 1 . . . . . . . . 3 . . . 2 5 . 5 . . . . . . . . . . . . . . . . . Spaces Dug 1344 | . . 7 2 . . . . 15 . 13 . 9 6 3 5 14 1 38 6 2 1 24 13 . 15 10 . . 10 35 34 16 32 1 4 . 8 1020 . Terrain Destroyed 1888 | . . 7 2 37 24 . 15 91 14 41 . 9 7 3 7 46 1 38 7 2 5 34 13 . 19 13 1 . 180 40 41 29 32 1 6 . 10 1113 . Melee 251 | . . . 2 . . . . 2 . 13 . 9 6 3 2 13 1 34 3 2 1 7 12 . 14 9 . . 10 33 30 7 26 1 4 . 4 3 . Projectile 158 | . . . . . 1 . 1 1 . 1 . . 1 . 5 . . 1 2 . 3 23 1 . 2 4 1 . 2 7 7 19 6 . 1 . 6 63 . AOE 1457 | . . 7 . 37 23 . 14 88 14 27 . . . . . 32 . . . . . . . . . . . . 168 . . . . . . . . 1047 . Terrain Rammed . | . . . . . . . . . . . . . . . . . . . . . . . . . . . . . . . . . . . . . . . . Walls Destroyed . | . . . . . . . . . . . . . . . . . . . . . . . . . . . . . . . . . . . . . . . . Machines Disabled . | . . . . . . . . . . . . . . . . . . . . . . . . . . . . . . . . . . . . . . . . Actions | -11 -10 -10 -9 -9 -9 -8 -8 -8 -8 -7 -7 -7 -7 -7 -7 -5 -5 -5 -5 -5 -5 -4 -4 -4 -4 -4 -4 -4 -4 -3 -3 -3 -2 -2 -1 -1 -1 -1 -1 --------- Run | Yrd Mat Min Mat Min Exi Min Mat Gar Mat Fac Was Fac Sto Rec Scr Fac Was Fac Upp Upp War Pro Fac Was Fac Ext Cet Arc Hub Res Qua Frg Res Tes Acc Gar Acc Com Ac0 Total 139730 | 117 410 1190 1102 872 1956 156 1273 1530 767 1407 116 2456 1189 337 1045 4436 688 8194 1186 880 236 1132 1607 95 3274 3035 416 709 2176 5984 6636 5148 8683 6976 51805 131 1712 8247 421 Wait 73077 | 18 5 565 76 37 275 23 305 152 181 182 . 389 399 6 70 997 70 1244 210 . 36 164 217 . 500 1159 180 449 490 843 2399 874 4554 3965 49939 54 463 1582 5 Move 61331 | 68 354 594 846 779 1453 126 773 1164 487 1070 115 1911 742 319 944 3269 602 6465 944 865 181 856 1257 92 2546 1736 202 239 1590 4868 3850 3495 3962 2861 1775 77 1197 6271 386 Hop 266 | . . . . . . . . . . 13 . 13 7 4 1 18 . 13 . . . . 14 2 18 26 . 1 26 26 10 7 31 15 6 . 6 5 4 Pick Up 440 | 5 15 6 23 2 36 . 13 7 3 5 . 4 1 . 4 23 4 18 . . . 4 18 . 18 8 4 1 2 20 20 105 7 3 3 . 4 53 1 Fast Attach 385 | 3 2 1 8 3 7 1 8 4 10 16 . 8 6 . 3 17 3 22 3 2 . 4 9 . 14 5 7 . 3 34 39 58 6 24 7 . 1 45 2 Attach 239 | 2 2 1 4 . 9 . 4 3 1 11 . 2 1 . . 14 . 25 . . . 4 11 . 19 3 1 . . 9 13 34 5 3 6 . 4 44 4 Detach 93 | . . . . 1 . . . . . 4 . 1 . . 2 2 . 20 . . . 3 3 . 12 . . . . 2 7 9 4 3 3 . 1 15 1 Swap 452 | . 3 2 15 3 14 2 15 20 10 12 1 10 . 1 1 14 . 23 5 1 . 10 10 1 22 13 9 . 24 34 35 84 22 10 8 . 2 10 6 Drop 671 | 2 2 2 39 6 41 1 19 12 11 18 . 9 5 1 8 30 8 35 2 3 . 6 24 . 14 6 9 1 5 46 55 132 7 25 6 . 4 71 6 Fire 1082 | 19 27 19 89 40 78 . 132 71 47 43 . . 3 . 6 8 . 92 17 1 18 58 7 . 13 18 3 . 4 11 71 64 3 4 6 . 4 101 5 Melee 1105 | . . . 2 . 43 3 4 17 17 33 . 34 24 6 6 44 1 82 5 3 1 23 25 . 41 27 1 18 31 91 107 169 82 63 46 . 9 46 1 Ram 1 | . . . . 1 . . . . . . . . . . . . . . . . . . . . . . . . . . . . . . . . . . . Kick . | . . . . . . . . . . . . . . . . . . . . . . . . . . . . . . . . . . . . . . . . Crush . | . . . . . . . . . . . . . . . . . . . . . . . . . . . . . . . . . . . . . . . . Escape Stasis 284 | . . . . . . . . 67 . . . . . . . . . . . . . . . . 57 15 . . . . 25 104 . . . . 16 . . Rewire 65 | . . . . . . . . 13 . . . . . . . . . 1 . . . . 8 . . 19 . . 1 . 5 13 . . . . 1 4 . Trap 239 | . . . . . . . . . . . . 75 1 . . . . 154 . 5 . . 4 . . . . . . . . . . . . . . . . Miscellaneous . | . . . . . . . . . . . . . . . . . . . . . . . . . . . . . . . . . . . . . . . . Route ------- -11/Scrapyard -10/Materials -10/Mines (discovered 2 exits: *Mat x2) -9/Materials (discovered 3 exits: *Mat x2 / *Min) -9/Mines (discovered 4 exits: *Mat x2 / *Exi / [*Zio]) -9/Exiles (discovered 2 exits: *Min x2) -8/Mines (discovered 2 exits: *Mat x2) -8/Materials (discovered 4 exits: *Fac x3 / Gar) -8/Garrison (discovered 3 exits: *Mat x3) -8/Materials (discovered 2 exits: *Fac x2) -7/Factory (discovered 3 exits: Sto / *Low x2) -7/Waste -7/Factory (discovered 2 exits: *Sto / *Low) -7/Storage (discovered 2 exits: *Fac / *Rec) -7/Recycling -7/Scraptown -5/Factory (discovered 2 exits: *Upp x2) -5/Waste -5/Factory -5/Upper Caves -5/Upper Caves (discovered 2 exits: *Fac / *War) -5/Warlord -4/Proximity Caves -4/Factory (discovered 6 exits: *Res x3 / *Upp / *Ext x2) -4/Waste -4/Factory (discovered 4 exits: *Res / *Upp x2 / *Ext) -4/Extension (discovered 3 exits: *Res x2 / *Cet) -4/Cetus (discovered 2 exits: *Res / *Arc) -4/Archives (discovered 3 exits: *Res / *Hub x2) -4/Hub_04(d) (discovered 4 exits: *Res x4) -3/Research (discovered 6 exits: *Res x3 / *Arm / *Qua x2) -3/Quarantine (discovered 3 exits: *Res / *Sec / *Frg) -3/Protoforge -2/Research (discovered 5 exits: *Acc x3 / *Tes x2) -2/Testing -1/Access (discovered 3 exits: Sur / Com / Gar) -1/Garrison -1/Access -1/Command (discovered 3 exits: *Sur x2 / *Ac0) -1/Access_0 Subspace History --------- Turn | Location | Event 14 | -11/Scrapyard | Discovered new exit (range 16) 119 | -11/Scrapyard | Entered Materials 193 | -10/Materials | Discovered new exit (range 12) 314 | -10/Materials | Build established: Mutant 552 | -10/Materials | Entered Mines 589 | -10/Mines | Met a Derelict bent on vengeance 623 | -10/Mines | Discovered new exit (range 7) 626 | -10/Mines | Assembled infested the area 1617 | -10/Mines | Learned Materials trap positions 1667 | -10/Mines | Received a Rocket Launcher from a helpful Derelict 1899 | -10/Mines | Discovered new exit (range 5) 2051 | -10/Mines | Entered Materials 2051 | -9/Materials | Evolved 2 slots: Propulsion x1, Utility x1 2052 | -9/Materials | Loaded intel: 9 trap records 2616 | -9/Materials | Discovered new exit (range 7) 3344 | -9/Materials | Discovered new exit (range 16) 3424 | -9/Materials | Learned Recycling recycling unit intel 3461 | -9/Materials | Identified exit to Materials 3488 | -9/Materials | Learned location of Zion (-7) 3516 | -9/Materials | Learned location of 1 exit from Storage 3529 | -9/Materials | Learned Storage emergency access door positions 3553 | -9/Materials | Learned location of Storage (-7) 3586 | -9/Materials | Learned Storage trap positions 3687 | -9/Materials | Identified exit to Mines 3810 | -9/Materials | Entered Mines 3810 | -9/Mines | Accompanied by 1 ally 3882 | -9/Mines | Excavation squad dispatched 3882 | -9/Mines | A large section of the Mines collapsed 4005 | -9/Mines | Found a damaged Exp. Sensor Array with a note attached 4008 | -9/Mines | Found Prototype Device 4027 | -9/Mines | A Derelict revealed a hidden shortcut to a safe place 4336 | -9/Mines | Assisted by bots powering up and referring to "LRC-V3" 4381 | -9/Mines | Discovered exit to Materials (range 3) 4661 | -9/Mines | Found the Drone Emporium 4668 | -9/Mines | Found Prototype Device 4668 | -9/Mines | Identified Decoy Drone Bay 4737 | -9/Mines | Discovered exit to Materials (range 13) 5142 | -9/Mines | Deemed a non-threat by the Exiles lab entrance 5143 | -9/Mines | Discovered new exit (range 5) 5169 | -9/Mines | Entered Exiles 5169 | -9/Exiles | Accompanied by 5 allies 5190 | -9/Exiles | Discovered new exit (range 15) 5199 | -9/Exiles | Led the pair of lost Derelicts to a safe place 5217 | -9/Exiles | Met 8R-AWN 5245 | -9/Exiles | Met EX-HEX 5304 | -9/Exiles | Met EX-DEC 5389 | -9/Exiles | Met EX-BIN 5572 | -9/Exiles | Found Blink Core 6837 | -9/Exiles | Found Deploy-a-Sentry 6846 | -9/Exiles | Found Deploy-a-Sentry 6855 | -9/Exiles | Found Deploy-a-Sentry 6872 | -9/Exiles | Found Modified TNC 6913 | -9/Exiles | Found Supersonic Drone Bay 7070 | -9/Exiles | Identified Exp. Sensor Array 7161 | -9/Exiles | Visited The Gauntlet 8168 | -9/Exiles | Attacked by the Exiles 8293 | -9/Exiles | Found 8R-AWN's Boregun 8298 | -9/Exiles | Found 8R-AWN's Boregun 8334 | -9/Exiles | Allies destroyed 8R-AWN 8570 | -9/Exiles | Destroyed EX-HEX 8679 | -9/Exiles | Destroyed EX-DEC 8690 | -9/Exiles | Found Deploy-a-Sentry 9007 | -9/Exiles | Discovered new exit (range 11) 9022 | -9/Exiles | Stole three prototypes: Modified TNC, Supersonic Drone Bay, Deploy-a-Sentry 9022 | -9/Exiles | Entered Mines 9022 | -8/Mines | Accompanied by 1 ally 9039 | -8/Mines | Discovered exit to Materials (range 30) 9042 | -8/Mines | Discovered exit to Materials (range 40) 9241 | -8/Mines | Entered Materials 9241 | -8/Materials | Accompanied by 1 ally 9241 | -8/Materials | Evolved 2 slots: Propulsion x1, Utility x1 9579 | -8/Materials | Discovered new exit (range 16) 10155 | -8/Materials | Discovered new exit (range 16) 10340 | -8/Materials | Identified exit to Garrison 10379 | -8/Materials | Garrison activated, responded to threat 10623 | -8/Materials | Learned location of 2 exits from Lower Caves 10726 | -8/Materials | Learned 2 Storage zone layouts 10761 | -8/Materials | Learned Storage stockpile data 10784 | -8/Materials | Identified exit to Factory 10798 | -8/Materials | Learned Storage emergency access door positions 10820 | -8/Materials | Learned Storage garrison access intel 10853 | -8/Materials | Learned location of 1 exit from Extension 10917 | -8/Materials | Entered Garrison 11035 | -8/Garrison | Installed Relay Interface Framework 11206 | -8/Garrison | Garrison Relay disabled 11599 | -8/Garrison | Triggered checkpoint 11707 | -8/Garrison | Discovered new exit (range 10) 11757 | -8/Garrison | Triggered checkpoint 11822 | -8/Garrison | Garrison Relay disabled 11919 | -8/Garrison | Triggered checkpoint 11963 | -8/Garrison | Core integrity fell below 50% 12029 | -8/Garrison | Garrison Relay disabled 12033 | -8/Garrison | Triggered checkpoint 12047 | -8/Garrison | Learned Materials security intel 12083 | -8/Garrison | Triggered checkpoint 12096 | -8/Garrison | Discovered new exit (range 15) 12329 | -8/Garrison | Triggered checkpoint 12407 | -8/Garrison | Triggered checkpoint 12420 | -8/Garrison | Garrison Relay disabled 12509 | -8/Garrison | Discovered new exit (range 12) 12551 | -8/Garrison | Build established: Commander-Mutant 12598 | -8/Garrison | Phase Generator disabled 12743 | -8/Garrison | Triggered checkpoint 13016 | -8/Garrison | Entered Materials 13016 | -8/Materials | Accompanied by 3 allies 13179 | -8/Materials | Garrison activated, responded to threat 13304 | -8/Materials | Repaired Arm. Wheel+ 13693 | -8/Materials | Discovered exit to Factory (range 12) 13757 | -8/Materials | Build established: Mutant 13816 | -8/Materials | First assault squad dispatched 13883 | -8/Materials | Core integrity fell below 20% 13913 | -8/Materials | Entered Factory 13913 | -7/Factory | Evolved 2 slots: Propulsion x1, Utility x1 13914 | -7/Factory | Identified exit to Storage 13914 | -7/Factory | Identified exit to Lower Caves 14088 | -7/Factory | Lost 3 parts (3n) 14633 | -7/Factory | Build established: Scout 14743 | -7/Factory | Manually triggered Chute Trap 14743 | -7/Factory | Sucked down chute 14743 | -7/Factory | Entered Waste 14747 | -7/Waste | Spotted C-40 Crusher 14748 | -7/Waste | Spotted C-40 Crusher 14748 | -7/Waste | Spotted C-40 Crusher 14748 | -7/Waste | Spotted C-40 Crusher 14749 | -7/Waste | Spotted C-40 Crusher 14752 | -7/Waste | Spotted C-40 Crusher 14760 | -7/Waste | Discovered new exit (range 16) 14770 | -7/Waste | Identified exit to Factory 14771 | -7/Waste | Entered Factory 14936 | -7/Factory | Repaired Lgt. Neutrino Core? 15103 | -7/Factory | Watched by a mysterious "MATRIX" hacker. 15152 | -7/Factory | Discovered exit to Lower Caves (range 4) 15276 | -7/Factory | Fabricated Exp. Sensor Array? 15670 | -7/Factory | Discovered exit to Storage (range 16) 15815 | -7/Factory | Entered Storage 15816 | -7/Storage | Identified exit to Factory 15818 | -7/Storage | Loaded intel: 22 trap records 15821 | -7/Storage | Loaded intel: 1 garrison access location 15975 | -7/Storage | Identified exit to Recycling 16233 | -7/Storage | Build established: Ninja 16247 | -7/Storage | Assisted by bots powering up and referring to "LRC-V3" 16298 | -7/Storage | Repaired Cld. VTOL Module 16475 | -7/Storage | Used back door to open Recycling access 16476 | -7/Storage | Entered Recycling 16477 | -7/Recycling | Loaded intel: 8 recycling unit locations 16563 | -7/Recycling | Scanned before Scraplab entrance 16568 | -7/Recycling | Entered Scraplab 16570 | -7/Recycling | Discovered new exit (range 2) 16570 | -7/Recycling | Identified exit to Scraptown 16571 | -7/Recycling | Entered Scraptown 16571 | -7/Scraptown | System corruption cleaned by C-Scrubber 16597 | -7/Scraptown | Visited Comm Corps 16601 | -7/Scraptown | Visited Awakened 16612 | -7/Scraptown | Visited IN-MT5's Study 16614 | -7/Scraptown | Visited CPS Storage 16617 | -7/Scraptown | Turned away by UFD registrar 16633 | -7/Scraptown | Discovered new exit (range 13) 16746 | -7/Scraptown | DAS Turret deployed 16747 | -7/Scraptown | DAS Turret deployed 16748 | -7/Scraptown | DAS Turret deployed 16748 | -7/Scraptown | DAS Turret deployed 16790 | -7/Scraptown | Attacked by Scraptown defenders 16902 | -7/Scraptown | Identified exit to Factory 16902 | -7/Scraptown | Entered Factory 16902 | -5/Factory | Evolved 4 slots: Power x1, Utility x3 16917 | -5/Factory | Spotted B-75 Beast 17140 | -5/Factory | Fabricated IN-MT5's Pitchfork "Insurrection"? 17158 | -5/Factory | Reprogrammed and armed K-01 Serf 17158 | -5/Factory | Reprogrammed and armed K-01 Serf 17174 | -5/Factory | Reprogrammed and armed K-01 Serf 17178 | -5/Factory | Reprogrammed and armed K-01 Serf 17445 | -5/Factory | Fabricated Force Lance (x2) 17639 | -5/Factory | Reprogrammed and armed K-01 Serf 17639 | -5/Factory | Reprogrammed and armed K-01 Serf 17639 | -5/Factory | Reprogrammed and armed K-01 Serf 17662 | -5/Factory | Build established: Hacker-Ninja 17693 | -5/Factory | Fabricated Lgt. Particle Reactor? 17700 | -5/Factory | Reprogrammed and armed K-01 Serf 17712 | -5/Factory | Reprogrammed and armed K-01 Serf 17716 | -5/Factory | Reprogrammed and armed K-01 Serf 17719 | -5/Factory | Fabricated IN-MT5's Pitchfork "Insurrection"? 17760 | -5/Factory | Reprogrammed and armed K-01 Serf 17760 | -5/Factory | Reprogrammed and armed K-01 Serf 17763 | -5/Factory | Reprogrammed and armed K-01 Serf 17766 | -5/Factory | Reprogrammed and armed K-01 Serf 17797 | -5/Factory | Fabricated IN-MT5's Pitchfork "Insurrection"? 17801 | -5/Factory | Discovered new exit (range 11) 17812 | -5/Factory | Discovered new exit (range 9) 17812 | -5/Factory | Identified exit to Upper Caves 17827 | -5/Factory | Reprogrammed and armed K-01 Serf 17827 | -5/Factory | Reprogrammed and armed K-01 Serf 17830 | -5/Factory | Reprogrammed and armed K-01 Serf 17834 | -5/Factory | Cargo convoy interrupted 17838 | -5/Factory | Reprogrammed and armed K-01 Serf 17851 | -5/Factory | Reprogrammed and armed K-01 Serf 17852 | -5/Factory | Reprogrammed and armed K-01 Serf 17887 | -5/Factory | Lost 7 allies 17966 | -5/Factory | Reprogrammed and armed K-01 Serf 18001 | -5/Factory | Fabricated IN-MT5's Pitchfork "Insurrection"? 18102 | -5/Factory | First assault squad dispatched 18200 | -5/Factory | Lost 3 allies 18415 | -5/Factory | Fabricated IN-MT5's Pitchfork "Insurrection"? 18529 | -5/Factory | Build established: Scavenger-Ninja 18901 | -5/Factory | Sucked down chute 18901 | -5/Factory | Entered Waste 18904 | -5/Waste | Spotted C-40 Crusher 18905 | -5/Waste | Spotted C-40 Crusher 18915 | -5/Waste | Found Broken Adv. Powered Armor 18921 | -5/Waste | Spotted C-40 Crusher 18926 | -5/Waste | Warlord forces began an assault 18956 | -5/Waste | Spotted C-40 Crusher 18965 | -5/Waste | Allies destroyed C-40 Crusher 18970 | -5/Waste | Spotted C-40 Crusher 18979 | -5/Waste | Allies destroyed C-40 Crusher 18983 | -5/Waste | Spotted C-40 Crusher 19012 | -5/Waste | Discovered new exit (range 12) 19030 | -5/Waste | Lost 3 allies 19121 | -5/Waste | Identified exit to Factory 19121 | -5/Waste | Entered Factory 19383 | -5/Factory | Discovered exit to Upper Caves (range 6) 19389 | -5/Factory | Reprogrammed and armed K-01 Serf 19506 | -5/Factory | Reprogrammed and armed K-01 Serf 19560 | -5/Factory | Reprogrammed and armed K-01 Serf 19594 | -5/Factory | Reprogrammed and armed K-01 Serf 19617 | -5/Factory | Garrison activated, responded to threat 19683 | -5/Factory | Reprogrammed and armed K-01 Serf 19683 | -5/Factory | Reprogrammed and armed K-01 Serf 19688 | -5/Factory | Reprogrammed and armed K-01 Serf 19737 | -5/Factory | Reprogrammed and armed K-01 Serf 19738 | -5/Factory | Reprogrammed and armed K-01 Serf 19741 | -5/Factory | Reprogrammed and armed K-01 Serf 20015 | -5/Factory | Reprogrammed and armed K-01 Serf 20017 | -5/Factory | Reprogrammed and armed K-01 Serf 20019 | -5/Factory | Reprogrammed and armed K-01 Serf 20045 | -5/Factory | Reprogrammed and armed K-01 Serf 20046 | -5/Factory | Reprogrammed and armed K-01 Serf 20201 | -5/Factory | Cargo convoy interrupted 20201 | -5/Factory | P-70 Sage assimilated allied K-01 Serf 20212 | -5/Factory | Reprogrammed and armed K-01 Serf 20233 | -5/Factory | Reprogrammed and armed K-01 Serf 20242 | -5/Factory | Reprogrammed and armed K-01 Serf 20274 | -5/Factory | Lost 7 allies 20311 | -5/Factory | Unchained authorized (GL-D0S) 20332 | -5/Factory | Reprogrammed and armed K-01 Serf 20392 | -5/Factory | Reprogrammed and armed K-01 Serf 20394 | -5/Factory | Reprogrammed and armed K-01 Serf 20399 | -5/Factory | Reprogrammed and armed K-01 Serf 20400 | -5/Factory | Reprogrammed and armed K-01 Serf 20405 | -5/Factory | Reprogrammed and armed K-01 Serf 20411 | -5/Factory | Reprogrammed and armed K-01 Serf 20423 | -5/Factory | Reprogrammed and armed K-01 Serf 20427 | -5/Factory | Reprogrammed and armed K-01 Serf 20638 | -5/Factory | Reprogrammed and armed K-01 Serf 20695 | -5/Factory | Reprogrammed and armed K-01 Serf 20789 | -5/Factory | Reprogrammed and armed K-01 Serf 20808 | -5/Factory | Imp. System Shield fried by hacking feedback 20832 | -5/Factory | Garrison activated, responded to threat 20870 | -5/Factory | Reprogrammed and armed K-01 Serf 20883 | -5/Factory | Reprogrammed and armed K-01 Serf 20929 | -5/Factory | Reprogrammed and armed K-01 Serf 20930 | -5/Factory | Reprogrammed and armed K-01 Serf 21047 | -5/Factory | Reprogrammed and armed K-01 Serf 21050 | -5/Factory | Reprogrammed and armed K-01 Serf 21051 | -5/Factory | Reprogrammed and armed K-01 Serf 21226 | -5/Factory | Reprogrammed and armed K-01 Serf 21236 | -5/Factory | Reprogrammed and armed K-01 Serf 21354 | -5/Factory | Lost 3 allies 21451 | -5/Factory | Reprogrammed and armed K-01 Serf 21467 | -5/Factory | Lost 3 allies 21490 | -5/Factory | Reprogrammed and armed K-01 Serf 21492 | -5/Factory | Reprogrammed and armed K-01 Serf 21497 | -5/Factory | Reprogrammed and armed K-01 Serf 21498 | -5/Factory | Reprogrammed and armed K-01 Serf 21508 | -5/Factory | Reprogrammed and armed K-01 Serf 21557 | -5/Factory | Reprogrammed and armed K-01 Serf 21560 | -5/Factory | Reprogrammed and armed K-01 Serf 21740 | -5/Factory | Lost 3 allies 21835 | -5/Factory | Reprogrammed and armed K-01 Serf 21841 | -5/Factory | Reprogrammed and armed K-01 Serf 21841 | -5/Factory | Reprogrammed and armed K-01 Serf 21896 | -5/Factory | Reprogrammed and armed K-01 Serf 21907 | -5/Factory | Reprogrammed and armed K-01 Serf 21920 | -5/Factory | Reprogrammed and armed K-01 Serf 21928 | -5/Factory | Reprogrammed and armed K-01 Serf 21929 | -5/Factory | Reprogrammed and armed K-01 Serf 21929 | -5/Factory | Reprogrammed and armed K-01 Serf 21931 | -5/Factory | Reprogrammed and armed K-01 Serf 21982 | -5/Factory | Reprogrammed and armed K-01 Serf 22006 | -5/Factory | Reprogrammed and armed K-01 Serf 22031 | -5/Factory | Garrison activated, responded to threat 22064 | -5/Factory | Found Prototype Special Weapon 22064 | -5/Factory | Identified Hammerchucker 22066 | -5/Factory | Reprogrammed and armed K-01 Serf 22068 | -5/Factory | Reprogrammed and armed K-01 Serf 22074 | -5/Factory | Reprogrammed and armed K-01 Serf 22077 | -5/Factory | Reprogrammed and armed K-01 Serf 22091 | -5/Factory | Reprogrammed and armed K-01 Serf 22101 | -5/Factory | Reprogrammed and armed K-01 Serf 22171 | -5/Factory | Reprogrammed and armed K-01 Serf 22183 | -5/Factory | Reprogrammed and armed K-01 Serf 22220 | -5/Factory | Reprogrammed and armed K-01 Serf 22221 | -5/Factory | Reprogrammed and armed K-01 Serf 22222 | -5/Factory | Reprogrammed and armed K-01 Serf 22329 | -5/Factory | Reprogrammed and armed K-01 Serf 22435 | -5/Factory | Targeted by mysterious "MATRIX" hacker. 22479 | -5/Factory | Reprogrammed and armed K-01 Serf 22483 | -5/Factory | Reprogrammed and armed K-01 Serf 22526 | -5/Factory | Attached CPS modules to GL-D0S. 22537 | -5/Factory | Allies destroyed GL-D0S 22549 | -5/Factory | Found Prototype Processor 22555 | -5/Factory | Found Exp. Sensor Array 22556 | -5/Factory | Identified Exp. Signal Interpreter 22559 | -5/Factory | Found Prototype Processor 22560 | -5/Factory | Identified Spectral Analyzer 22582 | -5/Factory | Lost 17 allies 22624 | -5/Factory | Reprogrammed and armed K-01 Serf 22642 | -5/Factory | Reprogrammed and armed K-01 Serf 22657 | -5/Factory | Reprogrammed and armed K-01 Serf 22678 | -5/Factory | Entered Upper Caves 22678 | -5/Upper Caves | Accompanied by 2 allies 22894 | -5/Upper Caves | Learned Factory trap positions 22907 | -5/Upper Caves | Encountered an infested base 22985 | -5/Upper Caves | Discovered new exit (range 10) 23030 | -5/Upper Caves | Identified exit to Upper Caves 23176 | -5/Upper Caves | Learned 8 Factory zone layouts 23184 | -5/Upper Caves | Spotted B-75 Beast 23209 | -5/Upper Caves | Entered another Upper Caves area 23209 | -5/Upper Caves | Discovered new exit (range 8) 23211 | -5/Upper Caves | Identified exit to Factory 23213 | -5/Upper Caves | Learned Factory interactive machine intel 23376 | -5/Upper Caves | Found DCF Scrap (12 items) 23384 | -5/Upper Caves | Encountered a Master Thief 23395 | -5/Upper Caves | Attracted the attention of an 0b10 outpost 23403 | -5/Upper Caves | Encountered a Master Thief 23408 | -5/Upper Caves | Learned 4 Factory zone layouts 23411 | -5/Upper Caves | Discovered new exit (range 4) 23411 | -5/Upper Caves | Identified exit to Warlord 23430 | -5/Upper Caves | Encountered a Master Thief 23461 | -5/Upper Caves | Entered Warlord 23471 | -5/Warlord | System corruption cleaned by Quarantine Array 23476 | -5/Warlord | Discovered new exit (range 15) 23483 | -5/Warlord | Opened side exit 23486 | -5/Warlord | RIF detected upon attempting to enter Warlord's base 23486 | -5/Warlord | Attacked by Warlord forces 23584 | -5/Warlord | Identified exit to Proximity Caves 23584 | -5/Warlord | Entered Proximity Caves 23586 | -4/Proximity Caves | Spotter reported a threat 23848 | -4/Proximity Caves | Learned Research emergency access door positions 24155 | -4/Proximity Caves | Discovered exit to Factory (range 21) 24179 | -4/Proximity Caves | Entered Factory 24179 | -4/Factory | Evolved 2 slots: Propulsion x1, Utility x1 24180 | -4/Factory | Identified exit to Extension 24181 | -4/Factory | Identified exit to Research 24182 | -4/Factory | Loaded intel: 110 trap records 24183 | -4/Factory | Loaded intel: 56 interactive machine locations 24239 | -4/Factory | Reprogrammed and armed K-01 Serf 24275 | -4/Factory | Reprogrammed and armed K-01 Serf 24277 | -4/Factory | Reprogrammed and armed K-01 Serf 24370 | -4/Factory | Discovered exit to Extension (range 16) 24410 | -4/Factory | Found Prototype Hackware 24417 | -4/Factory | Build established: Scavenger-Scout 24429 | -4/Factory | Search patrols dispatched 24520 | -4/Factory | Discovered new exit (range 3) 24520 | -4/Factory | Identified exit to Upper Caves 24566 | -4/Factory | Fabricated IN-MT5's Pitchfork "Insurrection"? 24679 | -4/Factory | Search patrols dispatched 24846 | -4/Factory | Found Prototype Device 24846 | -4/Factory | Identified Exp. Phase Shifter 24892 | -4/Factory | Sucked down chute 24892 | -4/Factory | Entered Waste 24894 | -4/Waste | Spotted C-40 Crusher 24905 | -4/Waste | Spotted C-40 Crusher 24905 | -4/Waste | Spotted C-40 Crusher 24905 | -4/Waste | Discovered new exit (range 24) 24906 | -4/Waste | Spotted C-40 Crusher 24907 | -4/Waste | EMP discharged 24907 | -4/Waste | Spotted C-40 Crusher 24909 | -4/Waste | Spotted C-40 Crusher 24921 | -4/Waste | Identified exit to Factory 24921 | -4/Waste | Entered Factory 24933 | -4/Factory | Identified Exp. Hacking Suite 25050 | -4/Factory | Discovered exit to Extension (range 6) 25093 | -4/Factory | Reprogrammed and armed K-01 Serf 25218 | -4/Factory | Build established: Scavenger-Ninja 25243 | -4/Factory | Discovered exit to Upper Caves (range 18) 25296 | -4/Factory | Discovered exit to Research (range 20) 25451 | -4/Factory | Reprogrammed and armed K-01 Serf 25453 | -4/Factory | Reprogrammed and armed K-01 Serf 25457 | -4/Factory | Reprogrammed and armed K-01 Serf 25543 | -4/Factory | Fabricated IN-MT5's Pitchfork "Insurrection"? 25627 | -4/Factory | Fabricated Triangulator? 25866 | -4/Factory | Fabricated IN-MT5's Pitchfork "Insurrection"? 25887 | -4/Factory | Lost 3 allies 25920 | -4/Factory | Reprogrammed and armed K-01 Serf 26001 | -4/Factory | Reprogrammed and armed K-01 Serf 26003 | -4/Factory | Spotted B-86 Titan 26018 | -4/Factory | Reprogrammed and armed K-01 Serf 26022 | -4/Factory | Reprogrammed and armed K-01 Serf 26032 | -4/Factory | Reprogrammed and armed K-01 Serf 26035 | -4/Factory | Reprogrammed and armed K-01 Serf 26068 | -4/Factory | Garrison activated, responded to threat 26074 | -4/Factory | Cargo convoy interrupted 26075 | -4/Factory | Spotted Striker 26090 | -4/Factory | Discovered exit to Upper Caves (range 16) 26094 | -4/Factory | Fabricated IN-MT5's Pitchfork "Insurrection"? 26120 | -4/Factory | Lost 3 parts (1n1u1w) 26136 | -4/Factory | Reprogrammed and armed K-01 Serf 26137 | -4/Factory | Reprogrammed and armed K-01 Serf 26155 | -4/Factory | Found Exp. Signal Interpreter 26167 | -4/Factory | Reprogrammed and armed K-01 Serf 26210 | -4/Factory | Reprogrammed and armed K-01 Serf 26226 | -4/Factory | Reprogrammed and armed K-01 Serf 26446 | -4/Factory | Entered Extension 26446 | -4/Extension | Accompanied by 1 ally 26510 | -4/Extension | Reprogrammed and armed K-01 Serf 26527 | -4/Extension | Build established: Hacker-Scout 26542 | -4/Extension | Spotted B-86 Titan 26546 | -4/Extension | Reprogrammed and armed K-01 Serf 26554 | -4/Extension | Spotted B-86 Titan 26555 | -4/Extension | Reprogrammed and armed K-01 Serf 26628 | -4/Extension | Reprogrammed and armed K-01 Serf 26630 | -4/Extension | Reprogrammed and armed K-01 Serf 26640 | -4/Extension | Reprogrammed and armed K-01 Serf 26640 | -4/Extension | Reprogrammed and armed K-01 Serf 26652 | -4/Extension | Reprogrammed and armed K-01 Serf 26840 | -4/Extension | Lost 3 allies 27032 | -4/Extension | Lost 3 allies 27071 | -4/Extension | Rescued a captive Derelict 27074 | -4/Extension | Rescued a captive Derelict 27114 | -4/Extension | Rescued A7 27213 | -4/Extension | Energy Cycler disabled 27213 | -4/Extension | Rescued a captive Derelict 27214 | -4/Extension | Rescued a captive Derelict 27215 | -4/Extension | Rescued a captive Derelict 27215 | -4/Extension | Rescued a captive Derelict 27215 | -4/Extension | Rescued a captive Derelict 27215 | -4/Extension | Rescued a captive Derelict 27216 | -4/Extension | Rescued a captive Derelict 27241 | -4/Extension | Reprogrammed and armed K-01 Serf 27242 | -4/Extension | Reprogrammed and armed K-01 Serf 27252 | -4/Extension | Reprogrammed and armed K-01 Serf 27253 | -4/Extension | Reprogrammed and armed K-01 Serf 27255 | -4/Extension | Reprogrammed and armed K-01 Serf 27288 | -4/Extension | Allies destroyed B-86 Titan 27308 | -4/Extension | Discovered exit to Research (range 15) 27311 | -4/Extension | Reprogrammed and armed K-01 Serf 27315 | -4/Extension | Extracted ID and sensor layout for unrecognized location from A7's data core 27315 | -4/Extension | Found Prototype Protection 27354 | -4/Extension | Lost 5 allies 27430 | -4/Extension | Identified Med. Regenerative Plating 27439 | -4/Extension | Central database locked down 27591 | -4/Extension | Discovered new exit (range 6) 27595 | -4/Extension | Reprogrammed and armed K-01 Serf 27597 | -4/Extension | Reprogrammed and armed K-01 Serf 27606 | -4/Extension | Reprogrammed and armed K-01 Serf 27678 | -4/Extension | Reprogrammed and armed K-01 Serf 27681 | -4/Extension | Reprogrammed and armed K-01 Serf 27681 | -4/Extension | Reprogrammed and armed K-01 Serf 27683 | -4/Extension | Reprogrammed and armed K-01 Serf 27728 | -4/Extension | Reprogrammed and armed K-01 Serf 27758 | -4/Extension | Reprogrammed and armed K-01 Serf 27759 | -4/Extension | Reprogrammed and armed K-01 Serf 27760 | -4/Extension | Reprogrammed and armed K-01 Serf 28253 | -4/Extension | Identified exit to Cetus 28287 | -4/Extension | Entered Cetus 28287 | -4/Cetus | Accompanied by 16 allies 28295 | -4/Cetus | Spotted Cetus Guard 28295 | -4/Cetus | Spotted Cetus Guard 28298 | -4/Cetus | Spotted Cetus Guard 28303 | -4/Cetus | Spotted Cetus Guard 28304 | -4/Cetus | Allies destroyed Cetus Guard 28327 | -4/Cetus | Allies destroyed Cetus Guard 28333 | -4/Cetus | Allies destroyed Cetus Guard 28336 | -4/Cetus | Allies destroyed Cetus Guard 28362 | -4/Cetus | Lost 4 allies 28409 | -4/Cetus | Discovered new exit (range 23) 28446 | -4/Cetus | Spotted Cetus Guard 28446 | -4/Cetus | Spotted Cetus Guard 28446 | -4/Cetus | Spotted Cetus Guard 28446 | -4/Cetus | Spotted Cetus Guard 28446 | -4/Cetus | Discovered exit to Research (range 23) 28461 | -4/Cetus | Allies destroyed Cetus Guard 28470 | -4/Cetus | Allies destroyed Cetus Guard 28492 | -4/Cetus | Allies destroyed Cetus Guard 28492 | -4/Cetus | Allies destroyed Cetus Guard 28501 | -4/Cetus | Met Revision 17 28505 | -4/Cetus | Murdered Revision 17 28517 | -4/Cetus | Lost 3 allies 28519 | -4/Cetus | Identified exit to Archives 28566 | -4/Cetus | Entered Archives 28566 | -4/Archives | Accompanied by 9 allies 28617 | -4/Archives | Discovered new exit (range 24) 28625 | -4/Archives | Discovered exit to Research (range 18) 28653 | -4/Archives | Discovered new exit (range 23) 29105 | -4/Archives | Identified exit to Hub_04(d) 29127 | -4/Archives | Entered Hub_04(d) 29127 | -4/Hub_04(d) | Accompanied by 6 allies 29248 | -4/Hub_04(d) | Reprogrammed and armed K-01 Serf 29299 | -4/Hub_04(d) | Reprogrammed and armed K-01 Serf 29299 | -4/Hub_04(d) | Reprogrammed and armed K-01 Serf 29385 | -4/Hub_04(d) | Reprogrammed and armed K-01 Serf 29566 | -4/Hub_04(d) | Reprogrammed and armed K-01 Serf 29567 | -4/Hub_04(d) | Reprogrammed and armed K-01 Serf 29859 | -4/Hub_04(d) | Lost 3 allies 29867 | -4/Hub_04(d) | Reprogrammed and armed K-01 Serf 29908 | -4/Hub_04(d) | Reprogrammed and armed K-01 Serf 30068 | -4/Hub_04(d) | Network Hub disabled 30073 | -4/Hub_04(d) | Reprogrammed and armed K-01 Serf 30082 | -4/Hub_04(d) | Reprogrammed and armed K-01 Serf 30084 | -4/Hub_04(d) | Network Hub disabled 30093 | -4/Hub_04(d) | Reprogrammed and armed K-01 Serf 30093 | -4/Hub_04(d) | Reprogrammed and armed K-01 Serf 30122 | -4/Hub_04(d) | Network Hub disabled 30168 | -4/Hub_04(d) | Network Hub disabled 30169 | -4/Hub_04(d) | Spotted Lightning 30171 | -4/Hub_04(d) | Spotted Lightning 30172 | -4/Hub_04(d) | Spotted Lightning 30192 | -4/Hub_04(d) | Spotted Lightning 30193 | -4/Hub_04(d) | Spotted Lightning 30193 | -4/Hub_04(d) | Spotted Lightning 30195 | -4/Hub_04(d) | Entered Research 30195 | -3/Research | Evolved 2 slots: Utility x2 30210 | -3/Research | Lost 4 allies 30275 | -3/Research | Identified exit to Armory 30275 | -3/Research | Identified exit to Quarantine 30426 | -3/Research | Identified exit to Research 30468 | -3/Research | Build established: Hacker-Ninja 30504 | -3/Research | Fabricated IN-MT5's Pitchfork "Insurrection" (x1) 30542 | -3/Research | Learned 8 Quarantine zone layouts 30566 | -3/Research | Central database locked down 30586 | -3/Research | Learned Quarantine terminal intel 30647 | -3/Research | Learned Testing trap positions 30664 | -3/Research | Learned 8 Access zone layouts 30692 | -3/Research | Loaded intel: 5 recycling unit locations 30715 | -3/Research | Found Unknown Launcher 30715 | -3/Research | Identified Fusion Bomb Launcher 30800 | -3/Research | Reprogrammed and armed K-01 Serf 31139 | -3/Research | Reprogrammed and armed K-01 Serf 31217 | -3/Research | Reprogrammed and armed K-01 Serf 31223 | -3/Research | Reprogrammed and armed K-01 Serf 31244 | -3/Research | Reprogrammed and armed K-01 Serf 31246 | -3/Research | Reprogrammed and armed K-01 Serf 31270 | -3/Research | P-80 Master assimilated allied K-01 Serf 31286 | -3/Research | Spotted B-90 Cyclops 31469 | -3/Research | Reprogrammed and armed K-01 Serf 31513 | -3/Research | Reprogrammed and armed K-01 Serf 31524 | -3/Research | Reprogrammed and armed K-01 Serf 31525 | -3/Research | P-80 Master assimilated allied K-01 Serf 31526 | -3/Research | Reprogrammed and armed K-01 Serf 31648 | -3/Research | Reprogrammed and armed K-01 Serf 31682 | -3/Research | Fabricated IN-MT5's Pitchfork "Insurrection" (x1) 31810 | -3/Research | Fabricated IN-MT5's Pitchfork "Insurrection" (x1) 31907 | -3/Research | Garrison activated, responded to threat 31940 | -3/Research | Spotted B-86 Titan 32143 | -3/Research | Repaired Exp. Sensor Array? 32215 | -3/Research | Build established: Hacker-Scout 32231 | -3/Research | Repaired Com. Particle Reactor 32289 | -3/Research | Repaired Molecular Scythe? 32624 | -3/Research | Entered Quarantine 32627 | -3/Quarantine | Loaded intel: 18 terminal locations 32630 | -3/Quarantine | Build established: Hacker-Ninja 32641 | -3/Quarantine | Found Exp. Hacking Suite 32701 | -3/Quarantine | Unchained authorized (BL-1NK) 32719 | -3/Quarantine | Reprogrammed and armed K-01 Serf 32722 | -3/Quarantine | Reprogrammed and armed K-01 Serf 32724 | -3/Quarantine | Reprogrammed and armed K-01 Serf 32730 | -3/Quarantine | Reprogrammed and armed K-01 Serf 32811 | -3/Quarantine | Reprogrammed and armed K-01 Serf 32930 | -3/Quarantine | Allies destroyed BL-1NK 32953 | -3/Quarantine | Found Prototype Protection 32953 | -3/Quarantine | Identified Lgt. Regenerative Plating 32959 | -3/Quarantine | Found ID Mask 32963 | -3/Quarantine | Reprogrammed and armed K-01 Serf 32992 | -3/Quarantine | Spotted Alpha 7 32996 | -3/Quarantine | Allies destroyed Alpha 7 33015 | -3/Quarantine | Found Blink Core 33180 | -3/Quarantine | Unchained authorized (CL-0N3) 33219 | -3/Quarantine | Reprogrammed and armed K-01 Serf 33220 | -3/Quarantine | Reprogrammed and armed K-01 Serf 33231 | -3/Quarantine | Reprogrammed and armed K-01 Serf 33374 | -3/Quarantine | U-05 Engineer reconstituted as S7 Guard 33380 | -3/Quarantine | Allies destroyed S7 Guard 33380 | -3/Quarantine | S7 Guard reconstituted as CL-0N3 33396 | -3/Quarantine | Allies destroyed CL-0N3 33398 | -3/Quarantine | Extracted schematics, analyses from CL-0N3's data core 33399 | -3/Quarantine | Found Prototype Processor 33405 | -3/Quarantine | Identified Zeronet Interface 33436 | -3/Quarantine | Reprogrammed and armed K-01 Serf 33440 | -3/Quarantine | Reprogrammed and armed K-01 Serf 33541 | -3/Quarantine | Unchained authorized (6S-H0T) 33878 | -3/Quarantine | Reprogrammed and armed K-01 Serf 33880 | -3/Quarantine | Reprogrammed and armed K-01 Serf 34031 | -3/Quarantine | Allies destroyed 6S-H0T 34034 | -3/Quarantine | Found Prototype Ballistic Gun 34034 | -3/Quarantine | Identified 6S-H0T's Six Shooter 34100 | -3/Quarantine | Central database locked down 34147 | -3/Quarantine | P-80 Master assimilated allied K-01 Serf 34164 | -3/Quarantine | Reprogrammed and armed K-01 Serf 34166 | -3/Quarantine | P-80 Master assimilated allied K-01 Serf 34190 | -3/Quarantine | Reprogrammed and armed K-01 Serf 34204 | -3/Quarantine | Unchained authorized (DW-4LL) 34217 | -3/Quarantine | Reprogrammed and armed K-01 Serf 34307 | -3/Quarantine | Reprogrammed and armed K-01 Serf 34319 | -3/Quarantine | P-80 Master assimilated allied K-01 Serf 34321 | -3/Quarantine | P-80 Master assimilated allied K-01 Serf 34327 | -3/Quarantine | Reprogrammed and armed K-01 Serf 34329 | -3/Quarantine | Reprogrammed and armed K-01 Serf 34338 | -3/Quarantine | Reprogrammed and armed K-01 Serf 34343 | -3/Quarantine | Reprogrammed and armed K-01 Serf 34449 | -3/Quarantine | Reprogrammed and armed K-01 Serf 34483 | -3/Quarantine | Reprogrammed and armed K-01 Serf 34485 | -3/Quarantine | Reprogrammed and armed K-01 Serf 34596 | -3/Quarantine | Allies destroyed DW-4LL 34597 | -3/Quarantine | Found Zeronet Interface 34603 | -3/Quarantine | Found Prototype Processor 34603 | -3/Quarantine | Identified Exp. Armor Integrity Analyzer 34610 | -3/Quarantine | Found Prototype Treads 34610 | -3/Quarantine | Identified DW-4LL's Griptreads 34618 | -3/Quarantine | Found Exp. Weapon Cycler 34639 | -3/Quarantine | Build established: Hacker-Scout 34675 | -3/Quarantine | Reprogrammed and armed K-01 Serf 34742 | -3/Quarantine | Reprogrammed and armed K-01 Serf 34766 | -3/Quarantine | Reprogrammed and armed K-01 Serf 34912 | -3/Quarantine | Reprogrammed and armed K-01 Serf 35478 | -3/Quarantine | Reprogrammed and armed K-01 Serf 35517 | -3/Quarantine | Reprogrammed and armed K-01 Serf 35625 | -3/Quarantine | P-80 Master assimilated allied K-01 Serf 35634 | -3/Quarantine | P-80 Master assimilated allied K-01 Serf 35635 | -3/Quarantine | Reprogrammed and armed K-01 Serf 35645 | -3/Quarantine | Reprogrammed and armed K-01 Serf 35645 | -3/Quarantine | Reprogrammed and armed K-01 Serf 35688 | -3/Quarantine | Repaired Nuclear Pulse Array+ 35718 | -3/Quarantine | Reprogrammed and armed K-01 Serf 35720 | -3/Quarantine | Reprogrammed and armed K-01 Serf 35722 | -3/Quarantine | Lost 8 allies 35748 | -3/Quarantine | Reprogrammed and armed K-01 Serf 35749 | -3/Quarantine | Reprogrammed and armed K-01 Serf 35813 | -3/Quarantine | Lost 4 allies 35917 | -3/Quarantine | Found Alien Slashing Weapon 35952 | -3/Quarantine | Reprogrammed and armed K-01 Serf 35953 | -3/Quarantine | Identified Sigix Broadsword 35971 | -3/Quarantine | Reprogrammed and armed K-01 Serf 36014 | -3/Quarantine | Found Alien Artifact 36081 | -3/Quarantine | Reprogrammed and armed K-01 Serf 36082 | -3/Quarantine | Reprogrammed and armed K-01 Serf 36084 | -3/Quarantine | Reprogrammed and armed K-01 Serf 36103 | -3/Quarantine | Reprogrammed and armed K-01 Serf 36103 | -3/Quarantine | Reprogrammed and armed K-01 Serf 36103 | -3/Quarantine | Reprogrammed and armed K-01 Serf 36103 | -3/Quarantine | Reprogrammed and armed K-01 Serf 36124 | -3/Quarantine | First assault squad dispatched 36165 | -3/Quarantine | Reprogrammed and armed K-01 Serf 36181 | -3/Quarantine | Lost 4 allies 36185 | -3/Quarantine | Spotted Fortress 36228 | -3/Quarantine | Destroyed Fortress 36233 | -3/Quarantine | Found Prototype Reactor 36233 | -3/Quarantine | Identified Vortex Chain Reactor 36246 | -3/Quarantine | Found Prototype Protection 36246 | -3/Quarantine | Identified Centrium Heavy Armor Plating 36250 | -3/Quarantine | Found Prototype Device 36250 | -3/Quarantine | Identified Exp. EM Shield 36374 | -3/Quarantine | Reprogrammed and armed K-01 Serf 36407 | -3/Quarantine | Found Alien Launcher 36407 | -3/Quarantine | Identified Sigix Terminator 36428 | -3/Quarantine | Found Alien Artifact 36428 | -3/Quarantine | Identified Hpw. Transdimensional Reconstructor 36428 | -3/Quarantine | Warped through subspace 36496 | -3/Quarantine | Found Alien Artifact 36501 | -3/Quarantine | Found Alien Artifact 36610 | -3/Quarantine | Discovered new exit (range 6) 36610 | -3/Quarantine | Discovered new exit (range 6) 36612 | -3/Quarantine | Identified exit to Protoforge 36612 | -3/Quarantine | Identified exit to Section 7 36614 | -3/Quarantine | Entered Protoforge 36615 | -3/Protoforge | Identified Transdimensional Reconstructor 36704 | -3/Protoforge | Spotted Hotshot 36704 | -3/Protoforge | Spotted Hotshot 36704 | -3/Protoforge | Spotted Hotshot 36704 | -3/Protoforge | Spotted Hotshot 36704 | -3/Protoforge | Spotted Hotshot 36722 | -3/Protoforge | Spotted Hotshot 36722 | -3/Protoforge | Spotted Hotshot 36723 | -3/Protoforge | Spotted Hotshot 36726 | -3/Protoforge | Spotted Hotshot 36749 | -3/Protoforge | Identified Dimensional Node Initializer 36749 | -3/Protoforge | Initialized slip node 36753 | -3/Protoforge | Spotted Hotshot 36753 | -3/Protoforge | Spotted Hotshot 36753 | -3/Protoforge | Spotted Hotshot 36753 | -3/Protoforge | Spotted Hotshot 36770 | -3/Protoforge | Build established: Ninja 36802 | -3/Protoforge | Reprogrammed and armed K-01 Serf 36804 | -3/Protoforge | Reprogrammed and armed K-01 Serf 36848 | -3/Protoforge | Spotted Hotshot 36877 | -3/Protoforge | Allies destroyed Hotshot 36970 | -3/Protoforge | P-80 Master assimilated allied K-01 Serf 37060 | -3/Protoforge | Found Prototype Storage 37060 | -3/Protoforge | Identified Cep. NT7 Matterbank 37070 | -3/Protoforge | Found Prototype Device 37070 | -3/Protoforge | Identified Exp. System Purifier 37092 | -3/Protoforge | Repaired Exp. Weapon Shielding? 37235 | -3/Protoforge | Found Prototype Power Core 37235 | -3/Protoforge | Identified Cep. Zero-point Core 37262 | -3/Protoforge | Found Cep. Antimissile System 37402 | -3/Protoforge | Spotted V018-s 37463 | -3/Protoforge | Build established: Scavenger-Assassin 37479 | -3/Protoforge | Spotted Decapitator 37479 | -3/Protoforge | Spotted Decapitator 37479 | -3/Protoforge | Spotted Decapitator 37630 | -3/Protoforge | Superfortress began startup sequence 37730 | -3/Protoforge | Reprogrammed and armed K-01 Serf 37740 | -3/Protoforge | Spotted Immortal 37775 | -3/Protoforge | Destroyed Immortal 37809 | -3/Protoforge | Spotted V980-t 37824 | -3/Protoforge | Destroyed V980-t 37828 | -3/Protoforge | Spotted V834-a 37871 | -3/Protoforge | Found Cep. Core Shell 37884 | -3/Protoforge | Forge Plexus network access discovered 37895 | -3/Protoforge | Reprogrammed and armed K-01 Serf 38083 | -3/Protoforge | Build established: Scavenger-Ninja 38215 | -3/Protoforge | Reprogrammed and armed K-01 Serf 38215 | -3/Protoforge | Reprogrammed and armed K-01 Serf 38219 | -3/Protoforge | Reprogrammed and armed K-01 Serf 38229 | -3/Protoforge | P-80 Master assimilated allied K-01 Serf 38238 | -3/Protoforge | Reprogrammed and armed K-01 Serf 38244 | -3/Protoforge | P-80 Master assimilated allied K-01 Serf 38368 | -3/Protoforge | Found Crosscalibrator 38373 | -3/Protoforge | Spotted Immortal 38373 | -3/Protoforge | Spotted Immortal 38377 | -3/Protoforge | Spotted Decapitator 38377 | -3/Protoforge | Spotted Decapitator 38377 | -3/Protoforge | Spotted Decapitator 38377 | -3/Protoforge | Spotted Decapitator 38391 | -3/Protoforge | Rewired Immortal 38408 | -3/Protoforge | Rewired Immortal 38410 | -3/Protoforge | Found Prototype Device 38410 | -3/Protoforge | Identified Exp. Cloaking Device 38432 | -3/Protoforge | Found Cep. Melee Reflex Suite 38436 | -3/Protoforge | Found Cep. Weapon Articulator 38439 | -3/Protoforge | Found Femtoactuators 38466 | -3/Protoforge | Destroyed Decapitator 38469 | -3/Protoforge | Destroyed Decapitator 38474 | -3/Protoforge | Destroyed Decapitator 38480 | -3/Protoforge | Destroyed Decapitator 38519 | -3/Protoforge | Found Cep. Antigrav Storage Unit 38521 | -3/Protoforge | Found Faulty Cep. Matter Streamer 38529 | -3/Protoforge | Found Faulty Cep. Matter Streamer 38538 | -3/Protoforge | Found Cep. Chromion Battery 38544 | -3/Protoforge | Found Corrupted Cep. Antigrav Storage Unit 38566 | -3/Protoforge | Found Corrupted Cep. Antigrav Storage Unit 38575 | -3/Protoforge | Found Cep. NT7 Matterbank 38587 | -3/Protoforge | Found Exp. Terror Saw 38629 | -3/Protoforge | Found Faulty Exp. Kinecellerator 38641 | -3/Protoforge | Found Faulty Exp. Kinecellerator 38686 | -3/Protoforge | Spotted V347-i 38759 | -3/Protoforge | Found Cep. Antimissile System 38793 | -3/Protoforge | Spotted Decapitator 38793 | -3/Protoforge | Spotted Decapitator 38793 | -3/Protoforge | Spotted V820-a 38794 | -3/Protoforge | Spotted V913-u 38823 | -3/Protoforge | Destroyed Decapitator 38826 | -3/Protoforge | Allies destroyed V913-u 38836 | -3/Protoforge | Allies destroyed V820-a 38857 | -3/Protoforge | Found Cep. Gyrokinetic System 38858 | -3/Protoforge | Found Prototype Device 38858 | -3/Protoforge | Identified Exp. Actuator Array 38860 | -3/Protoforge | Found Adv. Force Booster 38864 | -3/Protoforge | First assault squad dispatched 38869 | -3/Protoforge | Found Exp. Jetlance 38883 | -3/Protoforge | Destroyed Decapitator 38900 | -3/Protoforge | Found Cep. Plasma Driver 38908 | -3/Protoforge | Found Exp. Jetlance 38921 | -3/Protoforge | Found Exp. Terror Saw 38923 | -3/Protoforge | Found Faulty Cep. Plasma Driver 38926 | -3/Protoforge | Found Cep. Lightning Penetrator 38931 | -3/Protoforge | Found Cep. Plasma Driver 38940 | -3/Protoforge | Found Cep. Miniperforator 38952 | -3/Protoforge | Found Cep. Helical Railcannon 39097 | -3/Protoforge | Destroyed Decapitator 39102 | -3/Protoforge | Build established: Scavenger-Gladiator 39105 | -3/Protoforge | Core integrity fell below 50% 39105 | -3/Protoforge | Destroyed Decapitator 39110 | -3/Protoforge | Allies destroyed Decapitator 39317 | -3/Protoforge | Found Cep. Energy Mantle 39327 | -3/Protoforge | Found Cep. Core Shell 39462 | -3/Protoforge | Destroyed AP7-3 39466 | -3/Protoforge | Spotted AP7-3 39475 | -3/Protoforge | Destroyed AP7-3 39500 | -3/Protoforge | Found Cep. Impact Drone Bay 39502 | -3/Protoforge | Found Cep. Dimensional Manipulator 39505 | -3/Protoforge | Found Cep. Thermoelectric Network 39509 | -3/Protoforge | Found Cep. Cloak Mesh 39538 | -3/Protoforge | Found Cep. Network Penetrator 39552 | -3/Protoforge | Found Cep. Network Penetrator 39594 | -3/Protoforge | Additional patrols dispatched to research labs 39601 | -3/Protoforge | Found Cep. Nanofilaments [Tensile] 39601 | -3/Protoforge | Installed Cep. Nanofilaments [Tensile], 3 resistances modified: KI +20%, TH -10%, I +20% 39613 | -3/Protoforge | Found Transdimensional Reconstructor 39857 | -3/Protoforge | Found Faulty Cep. Fieldthrust Drive 39859 | -3/Protoforge | Found Cep. Fieldthrust Drive 39895 | -3/Protoforge | Found Faulty Cep. Fieldthrust Drive 39974 | -3/Protoforge | Found Cep. Zero-point Core 39989 | -3/Protoforge | Warped through subspace to slip node 39991 | -3/Protoforge | Found Femtoactuators 40039 | -3/Protoforge | Entered Research 40039 | -2/Research | Evolved 2 slots: Utility x2 40089 | -2/Research | Found Fusion Bomb Launcher 40114 | -2/Research | Spotted B-90 Cyclops 40119 | -2/Research | Identified exit to Testing 40119 | -2/Research | Identified exit to Access 40151 | -2/Research | Repaired Adv. Corruption Screen 40227 | -2/Research | Repaired Adv. Force Booster? 40351 | -2/Research | Found Fusion Bomb Launcher 40499 | -2/Research | Repaired Exp. Sensor Array 40505 | -2/Research | Spotted B-90 Cyclops 40563 | -2/Research | Identified Subatomic Replicator 40685 | -2/Research | Fabricated IN-MT5's Pitchfork "Insurrection" (x1) 40700 | -2/Research | Learned location of 1 exit from Research 40785 | -2/Research | Learned location of 2 exits from Research 41120 | -2/Research | Fabricated Triangulator (x2) 41381 | -2/Research | Build established: Wizard-Ninja 41893 | -2/Research | Build established: Wizard-Sprinter 45142 | -2/Research | Reprogrammed and armed K-01 Serf 45208 | -2/Research | Reprogrammed and armed K-01 Serf 45225 | -2/Research | Reprogrammed and armed K-01 Serf 45274 | -2/Research | Reprogrammed and armed K-01 Serf 45321 | -2/Research | Reprogrammed and armed K-01 Serf 45415 | -2/Research | Reprogrammed and armed K-01 Serf 45419 | -2/Research | Entered Testing 45419 | -2/Testing | Accompanied by 6 allies 45420 | -2/Testing | Loaded intel: 11 trap records 45452 | -2/Testing | Unchained authorized (1B-0RG) 45477 | -2/Testing | Reprogrammed and armed K-01 Serf 45536 | -2/Testing | Scanned by Researcher 45544 | -2/Testing | Reprogrammed and armed K-01 Serf 45544 | -2/Testing | Reprogrammed and armed K-01 Serf 45547 | -2/Testing | Reprogrammed and armed K-01 Serf 45604 | -2/Testing | Allies destroyed 1B-0RG 45608 | -2/Testing | Found Zeronet Interface 45615 | -2/Testing | Reprogrammed and armed K-01 Serf 45626 | -2/Testing | Found Prototype Hackware 45627 | -2/Testing | Identified Ghost Barrier 45639 | -2/Testing | Reprogrammed and armed K-01 Serf 45639 | -2/Testing | Reprogrammed and armed K-01 Serf 45641 | -2/Testing | Lost 3 allies 45641 | -2/Testing | Reprogrammed and armed K-01 Serf 45641 | -2/Testing | Reprogrammed and armed K-01 Serf 45691 | -2/Testing | Reprogrammed and armed K-01 Serf 45691 | -2/Testing | Reprogrammed and armed K-01 Serf 45740 | -2/Testing | Reprogrammed and armed K-01 Serf 45741 | -2/Testing | Reprogrammed and armed K-01 Serf 45783 | -2/Testing | Reprogrammed and armed K-01 Serf 45808 | -2/Testing | Lost 5 allies 45931 | -2/Testing | Fabricated IN-MT5's Pitchfork "Insurrection" (x1) 45937 | -2/Testing | Repaired Exp. Sensor Array? 45943 | -2/Testing | Spotted Striker 45974 | -2/Testing | Reprogrammed and armed K-01 Serf 45980 | -2/Testing | Reprogrammed and armed K-01 Serf 46005 | -2/Testing | Found Prototype Device 46005 | -2/Testing | Identified Exp. Hardlight Generator 46028 | -2/Testing | Found Prototype Hackware 46028 | -2/Testing | Identified System Mapper 46036 | -2/Testing | Reprogrammed and armed K-01 Serf 46260 | -2/Testing | Build established: Wizard-Ninja 46582 | -2/Testing | Reprogrammed and armed K-01 Serf 46584 | -2/Testing | Reprogrammed and armed K-01 Serf 46601 | -2/Testing | Spotted Striker 46617 | -2/Testing | Allies destroyed Striker 46661 | -2/Testing | Allies destroyed Striker 46665 | -2/Testing | Reprogrammed and armed K-01 Serf 46695 | -2/Testing | Found Prototype Energy Gun 46695 | -2/Testing | Identified Enh. Gamma Rifle 46697 | -2/Testing | Found Prototype Processor 46697 | -2/Testing | Identified Exp. Target Analyzer 46831 | -2/Testing | Found Prototype Ballistic Gun 46831 | -2/Testing | Identified Hyp. Multirail 46904 | -2/Testing | Reprogrammed and armed K-01 Serf 47214 | -2/Testing | Build established: Wizard-Sprinter 47741 | -2/Testing | P-80 Master assimilated allied K-01 Serf 50115 | -2/Testing | Entered Access 50115 | -1/Access | Evolved 2 slots: Utility x2 50316 | -1/Access | Identified exit to Command 50316 | -1/Access | Identified exit to Surface 50379 | -1/Access | Spotted B-99 Colossus 50409 | -1/Access | Identified exit to Garrison 52528 | -1/Access | Reprogrammed and armed K-01 Serf 52529 | -1/Access | Reprogrammed and armed K-01 Serf 52533 | -1/Access | Reprogrammed and armed K-01 Serf 53182 | -1/Access | Reprogrammed and armed K-01 Serf 53326 | -1/Access | Lost 3 allies 54235 | -1/Access | ID Mask engaged 100466 | -1/Access | Entered Garrison 100467 | -1/Garrison | Spotted B-90 Cyclops 100527 | -1/Garrison | Spotted B-99 Colossus 100528 | -1/Garrison | Triggered checkpoint 100532 | -1/Garrison | Discovered new exit (range 11) 100533 | -1/Garrison | Identified exit to Access 100534 | -1/Garrison | Entered Access 100539 | -1/Access | ID Mask no longer valid 100769 | -1/Access | Reprogrammed and armed K-01 Serf 100770 | -1/Access | Reprogrammed and armed K-01 Serf 100770 | -1/Access | Reprogrammed and armed K-01 Serf 100771 | -1/Access | Reprogrammed and armed K-01 Serf 100771 | -1/Access | Reprogrammed and armed K-01 Serf 100773 | -1/Access | Reprogrammed and armed K-01 Serf 100780 | -1/Access | Reprogrammed and armed K-01 Serf 100814 | -1/Access | Reprogrammed and armed K-01 Serf 100848 | -1/Access | Reprogrammed and armed K-01 Serf 100891 | -1/Access | Discovered exit to Command (range 3) 101004 | -1/Access | Build established: Wizard-Ninja 101267 | -1/Access | Entered Command 101267 | -1/Command | Accompanied by 5 allies 101277 | -1/Command | Phase Generator disabled 101296 | -1/Command | Reprogrammed and armed K-01 Serf 101356 | -1/Command | Disengaged cave seal 101365 | -1/Command | Reprogrammed and armed K-01 Serf 101406 | -1/Command | Identified exit to Access_0 101409 | -1/Command | Reprogrammed and armed K-01 Serf 101410 | -1/Command | Reprogrammed and armed K-01 Serf 101453 | -1/Command | Spotted B-99 Colossus 101455 | -1/Command | Reprogrammed and armed K-01 Serf 101460 | -1/Command | Destroyed B-99 Colossus 101485 | -1/Command | Learned Access interactive machine intel 101557 | -1/Command | Reprogrammed and armed K-01 Serf 101569 | -1/Command | Lost 4 allies 101755 | -1/Command | Build established: Wizard-Sprinter 101813 | -1/Command | Spotted M Guard 101824 | -1/Command | Combat Programmer assimilated allied K-01 Serf 101827 | -1/Command | Spotted Combat Programmer 101828 | -1/Command | Spotted Combat Programmer 101832 | -1/Command | Combat Programmer assimilated allied K-01 Serf 101835 | -1/Command | Combat Programmer assimilated allied K-01 Serf 101837 | -1/Command | Destroyed Combat Programmer 101839 | -1/Command | Reprogrammed and armed K-01 Serf 101839 | -1/Command | Destroyed Combat Programmer 101847 | -1/Command | Reprogrammed and armed K-01 Serf 101871 | -1/Command | Spotted M Guard 101901 | -1/Command | Destroyed M Guard 101905 | -1/Command | Destroyed M Guard 101905 | -1/Command | All MAIN.C guards destroyed 101916 | -1/Command | Found Prototype Ballistic Gun 101918 | -1/Command | Found Prototype Ballistic Gun 101924 | -1/Command | Found Hvy. Insulated Plating 102008 | -1/Command | Fired Sigix Terminator 102008 | -1/Command | MAIN.C activated Command garrisons 102015 | -1/Command | 0b10 Conduit disabled 102015 | -1/Command | Met MAIN.C 102026 | -1/Command | Identified Multirail (x2) 102029 | -1/Command | Destroyed 84 combat bots 102065 | -1/Command | Destroyed MAIN.C Shell 102096 | -1/Command | Lost 7 parts (2u5w) 102102 | -1/Command | Destroyed MAIN.C 102104 | -1/Command | Discovered exit to Surface (range 53) 102104 | -1/Command | Discovered exit to Surface (range 97) 102104 | -1/Command | Extracted map data and part IDs from MAIN.C's data core 102120 | -1/Command | Lost 4 allies 102178 | -1/Command | Spotted Striker 103580 | -1/Command | Build established: Hacker-Mutant 104159 | -1/Command | Build established: Mutant 105108 | -1/Command | Found Gamma Refractor 105122 | -1/Command | Found Vortex Chain Reactor 105193 | -1/Command | Found Zero-point Reactor 105196 | -1/Command | Found Exp. EM Shield 105200 | -1/Command | Found Exp. Phase Shifter 105202 | -1/Command | Found Exp. System Purifier 107117 | -1/Command | Build established: Scavenger-Mutant 107259 | -1/Command | Found Corrupted Exp. Core Analyzer 107418 | -1/Command | Found Active Sensor Suite 107714 | -1/Command | Build established: Scavenger-Skirmisher 108477 | -1/Command | Build established: Scavenger-Assassin 108515 | -1/Command | Found Multirail 108522 | -1/Command | Found Corrupted Multirail 108703 | -1/Command | Found Exp. Core Analyzer 108706 | -1/Command | Found Exp. Core Analyzer 109159 | -1/Command | Used Subatomic Replicator to replicate Gamma Refractor 109278 | -1/Command | Warped through subspace to slip node 109284 | -1/Command | Entered Access_0 109285 | -1/Access_0 | Met Architect 109314 | -1/Access_0 | Found Integrated Dissipator 109314 | -1/Access_0 | Installed Integrated Dissipator, increased core heat dissipation (+20) 109323 | -1/Access_0 | A6 warped into view 109338 | -1/Access_0 | Triggered Gamma Refractor 109339 | -1/Access_0 | Triggered Gamma Refractor 109352 | -1/Access_0 | Destroyed A2 109355 | -1/Access_0 | Extracted Singularity Gate Test 138-C access codes from A2's data core 109372 | -1/Access_0 | Started Test 138-B, establishing a local singularity 109372 | -1/Access_0 | Started Test 138-C, cascade imminent 109372 | *** | Destroyed Tau Ceti IV! Last Messages --------------- 09373_ Impact Drone crushed by falling debris. 09373_ The unstable cave ceiling collapses. 09373_ Impact Drone crushed by falling debris. 09373_ Impact Drone system corrupted by crushing effect. 09373_ Connecting with Gate Controls... >>Gate Test 138-A Running Singularity Gate diagnostics... All systems nominal. >>Gate Test 138-B Preparing Singularity Gate activation... Stable singularity established. >>Gate Test 138-C Initiating Test 138-C... Warning: Experimental formulas incomplete. Potential effects include instability. Repeat command to confirm test. >>Gate Test 138-C Initiating Test 138-C... Applying incomplete calculations.... INSTABILITY DETECTED, CASCADE IMMINENT. Map ----- +----------------------------------------------------+ | ?????????????????????????????????????????????????? | | ?????????????????????????????????????????????????? | | ?????????????????????????????????????????????????? | | ?????????????????????????????????????????????????? | | ?????????????????????????????????????????????????? | | ?????????????????????????????????????????????????? | | ?????????????????????????????????????????????????? | | ?????????????????????????????????????????????????? | | ?????????????????????????????????????????????????? | | ?????????????????????????????????????????????????? | | ??????????????????????? ????????????????????????? | | ????????????????????? ????????????????????????? | | ???????????????????" """"????????????????????? | | ????????????????"""" """"????????????????????? | | ????????????????" "????????????????????? | | ???????????????"" "????????????????????? | | ???????????????"" ""???????????????????? | | ???????????????#" "#???????????????????? | | ???????????????#" "#???????????????????? | | ???????????????#" "#???????????????????? | | ???????????????#" "#???????????????????? | | ??????????????##" "##??????????????????? | | ??????????????#"" ""#??????????????????? | | ??????????????#"" ""#??????????????????? | | ???????????????#" "#???????????????????? | | ????????????????"""" @A""##??????????????????? | | ????????????????"""" """""#??????????????????? | | ????????????????#### ######??????????????????? | | ???????????????????# #??????##?#?????????????? | | ???????????????????# #?????# # ####??????????? | | ???????????????????# #????# " ??????????? | | ???????????????????# #???? ?????????? | | ???????????????????# #??## ???????????? | | ???????????????????# ### ???????????? | | ???????????????????# ## # | | ???????????????????# ## | | ???????????????????# #" | | ???????????????????# ##"" | | ???????????????????# ## | | ???????????????????#### # # | | ??????????????????????## # #"" | | ???????????????????????### "" | | ????????????????????????# | | ???????????????????????## | | ??????????????????????## | | ??????????????????????# | | ??????????????????????## | | ???????????????????????## | | ????????????????????????# | | ????????????????????????#" | +----------------------------------------------------+ Best States ------------- Heat Dissipation 84 Energy Generation 61 Energy Capacity 2850 Matter Stores 1050 Matter Capacity 1050 Sight Range 24 Robot Scan Range 20 Terrain Scan Range 18 Terrain Scan Density 135 ECM Strength 1 Jamming Range 16 Cloak Strength 6 Additional Mass Support 30 Corruption Containment 8 Corruption Block 20 Armor Coverage 1275 Resistance: KI 20 Resistance: TH 15 Resistance: EM 75 Resistance: I 20 Core Shielding 90 Propulsion Shielding 66 Utility Shielding 90 Weapon Shielding 90 Point Defense Rating 480 Weapon Cycling 30 Melee Speed Boost 50 Phase Shifting 20 Evasion (%) 101 Targeting Accuracy 30 Melee Accuracy 16 Core Analysis 12 Armor Integrity Analysis 40 Recoil Reduction 6 Kinecelleration 66 Force Boost 40 Offensive Hacking 100 Defensive Hacking 14 Relay Coupler Types 2 Relay Coupler Value 36 Authchip Count 1 Trap Extractor Capacity 4 Item Schematics ----------------- Huge Storage Unit | -10/Materials | Hacked Exp. Sensor Array | -8/Materials | Scanalyzed Gravity Neutralizer | -7/Factory | Scanalyzed Cld. VTOL Module | -7/Factory | Scanalyzed IN-MT5's Pitchfork "Insurrection" | -7/Scraptown | Archive Triangulator | -5/Factory | Hacked CPS Tube | -3/Research | Scanalyzed Exp. Hacking Suite | -3/Research | Hacked Centrium Medium Armor Plating | -3/Research | Scanalyzed Centrium Leg | -3/Research | Hacked Exp. Utility Shielding | -3/Research | Scanalyzed Tri-rail Accelerator | -3/Research | Scanalyzed Cld. Antigrav System | -3/Quarantine | Archive Spectral Analyzer | -3/Quarantine | Archive Hvy. Dispersion Rifle | -3/Quarantine | Archive Exp. Cooling System | -3/Quarantine | Archive Hds. Centrium Wheel | -3/Quarantine | Archive Mni. Smartbomb Launcher | -3/Quarantine | Archive Smartbomb Launcher | -3/Quarantine | Archive Proton Burst Cannon | -3/Quarantine | Archive Hvy. Tesla Rifle | -3/Quarantine | Archive Hvy. Antimatter Reactor | -3/Quarantine | Archive Molecular Scythe | -3/Quarantine | Archive Cld. Field Propulsion Drive | -3/Quarantine | Archive Hellfire Missile Launcher | -3/Quarantine | Archive Cld. Impulse Thruster | -3/Quarantine | Archive Adv. KE Penetrator | -3/Quarantine | Archive Exp. Thermal Generator | -3/Quarantine | Archive Diametric Drive | -3/Quarantine | Archive Thunder Hammer | -3/Quarantine | Archive Cld. Proton Cannon | -3/Quarantine | Archive Adv. Variable Charge Gun | -3/Quarantine | Archive Electron Diverter | -3/Quarantine | Archive Adv. Dynamic Insulation System | -3/Quarantine | Archive Centrium Heavy Armor Plating | -3/Protoforge | Archive Exp. Energy Well | -3/Protoforge | Archive Cld. Q-thruster | -2/Research | Hacked Exp. Actuator Array | -2/Testing | Hacked Enh. Multireflex Exoskeleton | -2/Testing | Archive Tactical Quantum Warhead | -2/Testing | Archive Exp. Power Shielding | -2/Testing | Archive Exp. Power Amplifier | -2/Testing | Archive Hvy. Proton Cannon | -2/Testing | Archive Exp. Signal Interpreter | -2/Testing | Archive Exp. Terrain Scan Processor | -2/Testing | Archive Enh. Force Rifle | -2/Testing | Archive Hvy. Neutron Cannon | -2/Testing | Archive Exp. Coolant Injector | -2/Testing | Archive Com. Linear Accelerator | -2/Testing | Archive Robot Schematics ------------------ P-70 Sage | -4/Extension | Hacked K-01 Serf | -3/Quarantine | Archive T-07 Excavator | -3/Quarantine | Archive A-02 Transporter | -3/Quarantine | Archive A-15 Conveyor | -3/Quarantine | Archive R-06 Scavenger | -3/Quarantine | Archive R-10 Processor | -3/Quarantine | Archive M-14 Sweeper | -3/Quarantine | Archive M-22 Extractor | -3/Quarantine | Archive M-30 Cleanser | -3/Quarantine | Archive M-13 Machinist | -3/Quarantine | Archive M-28 Smith | -3/Quarantine | Archive M-36 Artificer | -3/Quarantine | Archive O-16 Technician | -3/Quarantine | Archive O-24 Administrator | -3/Quarantine | Archive O-32 Director | -3/Quarantine | Archive W-16 Scout | -3/Quarantine | Archive W-25 Informer | -3/Quarantine | Archive W-44 Eye | -3/Quarantine | Archive S-10 Pest | -3/Quarantine | Archive S-27 Virus | -3/Quarantine | Archive S-43 Plague | -3/Quarantine | Archive G-34 Mercenary | -3/Quarantine | Archive G-47 Trooper | -3/Quarantine | Archive G-50 Soldier | -3/Quarantine | Archive G-67 Veteran | -3/Quarantine | Archive G-73 Enforcer | -3/Quarantine | Archive B-36 Bruiser | -3/Quarantine | Archive B-48 Gladiator | -3/Quarantine | Archive B-60 Warrior | -3/Quarantine | Archive B-74 Champion | -3/Quarantine | Archive L-31 Rogue | -3/Quarantine | Archive L-41 Fighter | -3/Quarantine | Archive L-61 Swordsman | -3/Quarantine | Archive Y-45 Defender | -3/Quarantine | Archive Y-54 Guardian | -3/Quarantine | Archive Y-64 Sentinel | -3/Quarantine | Archive Y-72 Warden | -3/Quarantine | Archive D-53 Grenadier | -3/Quarantine | Archive D-63 Destroyer | -3/Quarantine | Archive D-83 Annihilator | -3/Quarantine | Archive X-57 Shotgunner | -3/Quarantine | Archive X-62 Marksman | -3/Quarantine | Archive X-67 Chaingunner | -3/Quarantine | Archive X-72 Disruptor | -3/Quarantine | Archive X-77 Beamer | -3/Quarantine | Archive X-82 Rainmaker | -3/Quarantine | Archive X-87 Electro | -3/Quarantine | Archive H-55 Commando | -3/Quarantine | Archive H-66 Slayer | -3/Quarantine | Archive H-77 Assassin | -3/Quarantine | Archive H-88 Terminator | -3/Quarantine | Archive P-60 Hacker | -3/Quarantine | Archive P-80 Master | -3/Quarantine | Archive Fabricated ------------ Exp. Sensor Array | x1 | -7/Factory | Authchip IN-MT5's Pitchfork "Insurrection" | x1 | -5/Factory | Authchip Force Lance | x2 | -5/Factory | Preloaded Lgt. Particle Reactor | x2 | -5/Factory | Preloaded IN-MT5's Pitchfork "Insurrection" | x1 | -5/Factory | Authchip IN-MT5's Pitchfork "Insurrection" | x1 | -5/Factory | Authchip IN-MT5's Pitchfork "Insurrection" | x1 | -5/Factory | Authchip IN-MT5's Pitchfork "Insurrection" | x1 | -5/Factory | Authchip IN-MT5's Pitchfork "Insurrection" | x1 | -4/Factory | Authchip IN-MT5's Pitchfork "Insurrection" | x1 | -4/Factory | Authchip Triangulator | x2 | -4/Factory | Authchip IN-MT5's Pitchfork "Insurrection" | x1 | -4/Factory IN-MT5's Pitchfork "Insurrection" | x1 | -4/Factory | Authchip IN-MT5's Pitchfork "Insurrection" | x1 | -3/Research IN-MT5's Pitchfork "Insurrection" | x1 | -3/Research | Authchip IN-MT5's Pitchfork "Insurrection" | x1 | -3/Research IN-MT5's Pitchfork "Insurrection" | x1 | -2/Research Triangulator | x2 | -2/Research IN-MT5's Pitchfork "Insurrection" | x1 | -2/Testing Repaired ---------- Arm. Wheel | 46% | -8/Materials Lgt. Neutrino Core | 35% | -7/Factory Cld. VTOL Module | 70% | -7/Storage Exp. Sensor Array | 17% | -3/Research Com. Particle Reactor | 23% | -3/Research Molecular Scythe | 50% | -3/Research Nuclear Pulse Array | 41% | -3/Quarantine Exp. Weapon Shielding | 1% | -3/Protoforge Adv. Corruption Screen | 47% | -2/Research Adv. Force Booster | 38% | -2/Research Exp. Sensor Array | 65% | -2/Research Exp. Sensor Array | 31% | -2/Testing Studied --------- Lgt. Treads | -9/Materials | Hacked Lgt. Ion Engine | -9/Materials | Hacked Arm. Wheel | -9/Materials | Hacked Imp. Treads | -9/Materials | Hacked Mic. Fission Core | -4/Factory | Hacked Force Lance | -4/Factory | Hacked Field Propulsion Array | -3/Research | Hacked Nuclear Pulse Array | -3/Research | Hacked Lgt. Nuclear Core | -3/Research | Hacked Impulse Thruster | -3/Research | Hacked Hyb. Antimatter Reactor | -3/Quarantine | Hacked Nova Cannon | -3/Quarantine | Hacked Fusion Bomb Launcher | -2/Research | Hacked Alien Tech Used ----------------- Sigix Broadsword Sigix Terminator High-powered Transdimensional Reconstructor Dimensional Node Initializer Concept Nanofilaments [Tensile] Transdimensional Reconstructor Subatomic Replicator Integrated Dissipator Achievements -------------- None Challenges ------------ None Game ------ Seed RiotSwarmMicroactuators Manual? 0 Play Time 21:20:26 Cumulative 1338.1 hours Start 2026.02.02 @ 14:26:34 End 2026.02.06 @ 06:10:07 Sessions 13 Manual Loads 0 Difficulty Rogue Special Mode None Game No. 447 Rogue 442 Adventurer 4 Explorer 1 Win Type 5 Total 32 Types 15/5/2/2/0/2/2/0/2/2 Lore% 97 Gallery% 96 Achievement% 84 Wizard Run 0 Options --------- Layout 0 ASCII 0 Keyboard 0 Movement Numpad Keybinds 0 Fullscreen 2 Font 18/SmallcapsGlow Map View 76x50 Zoom Use 0% Tactical HUD 1 Map Filters NONE Filters NONE Steam 1 RUN: 60288cb7-16a1-4853-bb92-751ae6872795